Workbook

Sheet Read Me
A4: Retrospective Soil Health Economic Calculator (R-SHEC) Tool
A5: TREE NUT VERSION
A6: Crops built in: Almonds, Pistachios, Walnuts
A7: Updated: May 30th, 2024
A9: BEFORE BEGINNING DATA ENTRY, CREATE A COPY OF THE WORKBOOK FOR YOUR SOIL HEALTH SUCCESSFUL GROWER
A12: Tree Nut Soil Health Practices Evaluated
B13: NRCS Practice Code | C13: Practice | D13: NRCS Conservation Practice Standard Definition 1
B14: 336 | C14: Compost Application | D14: Under Soil Carbon Amendment CPS 336: Application of carbon-based amendments derived from plants or animal byproducts.
B15: 327 | C15: Conservation Cover | D15: Establishing and maintaining permanent vegetative cover.
B16: 340 | C16: Cover Crops | D16: Grasses, legumes and forbs planted for seasonal vegetative cover.
B17: 484 | C17: Mulching | D17: Applying plant residues or other suitable materials to the land surface.
B18: 590 | C18: Nutrient Management | D18: Manage rate, source, placement, and timing of plant nutrients and soil amendments while reducing environmental impacts.
B19: 1 Natural Resources Conservation Service. Conservation Practice Standards. Visited on May 15, 2024: https://www.nrcs.usda.gov/resources/guides-and-instructions/conservation-practice-standards
A21: General Information
A22: Access the R-SHEC Manual & Questionnaire here: http://farmlandinfo.org/rshec-toolkit
A24: Complete this survey to determine if the R-SHEC Tool is right for your study area!
A26: The Tree Nut version of the R-SHEC Tool is designed to estimate the economic effects, retrospectively, of soil health practices adopted by "soil health successful" growers of almonds, pistachios, &/or walnuts. The tree nut R-SHEC can be used with growers that have adopted any combination of composting, conservation cover, cover crops, mulching, &/or nutrient management for four or more years and within the last 15 years. Additionally, the orchard trees must have been at least 5-7 years old (i.e., full-bearing age) before the grower adopted these soil health practices in order to separate natural tree growth and those soil health practice benefits on tree health. The R-SHEC estimates changes in field operation costs and benefits with the adoption of soil health practice(s) on average; comparing “benchmark” operations (before adoption of soil health practices) versus current operations (after adoption of soil health practices). The grower must have a clear understanding of average benchmark versus current field operations, including input amounts and, in some cases, costs as well. Data input occurs in 'Orchard Info', soil health practice tabs, and the 'Combined Practice Effects' tab (data-entry occurs in yellow-shaded cells; see instructions or user manual for details) and output is presented in the light yellow PBA tabs. The R-SHEC employs a partial budget analysis (PBA) to estimate the change in net income due to adoption of soil health practices. A PBA focuses only on variables that change. This PBA analyzes economic effects within these cost/benefit categories: machinery, fertilizer, chemicals, yield, erosion repair, learning costs, and open-ended "other costs/benefits". The R-SHEC compares average costs & benefits in these categories "before" & "after" soil health practice adoption, relying on a combination of user inputs and standardized cost and price information built into the R-SHEC. Whenever possible, national prices or costs are used to avoid biasing the results in cases where the grower's prices may not be representative of typical prices. Prices and price sources are listed on the "Prices" and "Machinery Costs" tabs. However, the grower does have the option to use their own prices for fertilizer and almonds (entered on "Orchard Info" tab), or insert costs from the University of California, Davis almond orchard budgets where appropriate (see "Ref 1 ..." and "Ref 2 ..." tabs). Visit https://coststudies.ucdavis.edu/current/commodities to reference UC Davis walnut and pistachio budgets. Results are displayed in a PBA table on an annual basis for the Study Area on the Partial Budget Analysis tabs, color-coded light yellow. NOTES: - The tree nut R-SHEC was designed for use in California but can be used for orchards in other locations with price &/or cost adjustments as needed. - We encourage users to review and, ideally, complete the Tree Nut R-SHEC Questionnaire so that data needed by the R-SHEC is organized and at-hand for data entry. - American Farmland Trust (AFT) used the previous version of the almond R-SHEC Tool to conduct the PBA for case studies of soil health successful almond growers in California as part of a Conservation Innovation Grant, "Quantifying the Economic and Environmental Benefits of Soil Health" (NR183A750008G008). - These case studies, along with others, are available on AFT’s Farmland Information Center website: https://farmlandinfo.org/publications/soil-health-case-studies/ For more information, please contact: Michelle Perez, Project Leader and Water Initiative Director, American Farmland Trust at mperez@farmland.org For trouble-shooting assistance with the R-SHEC Tool, please contact: Robert Ellis, Agricultural Economist, American Farmland Trust at rellis@farmland.org *Special thanks to Florence Swartz, Lead Developer of the R-SHEC Tool and Consulting Economist for AFT from 2018 - 2021, Retired NRCS-NY Economist.
A56: General Information
A57: 1 | B57: This workbook is protected in order to protect formulas throughout the workbook. Data entry is only in yellow-shaded cells.
B58: To adjust any information on the "Price" or "Machinery Costs" tabs (also referred to as worksheets) or to view formulas, follow these steps for full access to protected sheets:
B59: a. Click on "File" in the green banner in the top left corner;
B60: b. Click on "Info" to open a page containing a yellow box called "Protect Workbook" that lists protected worksheets;
B61: c. Click on "Unprotect" adjacent to each worksheet you wish to have access to;
B62: d. To re-protect a worksheet, select "File" as before; select "Info"; select "Protect Workbook"; select "Protect Current Sheet". You will be presented with a box offering the options of selecting a password and what access, if any, you wish to allow. You should allow access to unlocked cells, at a minimum, in order to allow data entry. Navigate to the next sheet you wish to protect and follow the same process.
A64: 2 | B64: Results are presented on the PBA tabs. Results are presented on an annual basis per acre and for the entire Study Area.
A65: 3 | B65: Calculations of costs and benefits for the individual practices (or Combined Practice Effects) tabs occur within each of the worksheets.
A66: 4 | B66: Erosion benefits: If there is mechanical repairs usually, the cost savings is spread out over the entire Study Area acreage. This allows the mechanical repair cost savings to be added to the per acre value of reduced sheet and rill erosion.
A68: 5 | B68: Enter reductions as negative values and increases as positive values for changes in yield, fertilizer use, and pesticide use.
A70: About Individual Worksheets (aka 'Tabs')
A71: 1 | B71: Orchard Info:
B72: a. Records information used throught the workbook.
B73: b. "Clear All Data" button will clear all data entered in yellow-shaded cells.
A74: 2 | B74: Nutrient Management:
B75: a. Calculates how changes in nutrient management affects machinery used, yield, costs of nutrients, and costs of pesticides.
B76: b. User selects equipment that comes closest to what the grower is using and costs are calculated automatically.
A77: 3 | B77: Cover:
B78: a. Captures costs of cover crop or conservation cover and any affects yield, costs of nutrients, costs of pesticides, and soil erosion.
A79: 4 | B79: Mulching:
B80: a. Captures changes in mulching costs and how these changes affect yield, costs of nutrients, costs of pesticides, and soil erosion.
A81: 5 | B81: Compost Application
B82: a. Captures changes in compost application cost and how these changes affect yield, costs of nutrients, costs of pesticides, and soil erosion.
A83: 6 | B83: Combined Practice Effects:
B84: a. Provides a place to record benefits or costs that cannot be attributed to a single soil health practice.
A85: 7 | B85: Partial Budget Analysis (PBA):
B86: a. The PBA tab performs a partial budget analysis using calculations from the five soil health practice worksheet and placing them in the correct quadrant of the PBA table to determine Net Returns per acre, Total Net Returns for the Study Area, and Return on Investment.
B88: b. The PBA table is divided into four quadrants categorizing costs and benefits then presents the results at the bottom of the table:
B89: i. Increase in Income (top left side of PBA Table)
B90: ii. Decrease in Cost (bottom left side of PBA Table)
B91: iii. Decrease in Income (top right side of PBA Table)
B92: ii. Increase in Cost (bottom right side of PBA Table)
B93: iii. Results are displayed near the bottom of the table as Total Net Return, Per Acre Net Retun, and % Return on Investment
A94: 8 | B94: Editable PBA:
B95: a. This unprotected worksheet can be modified to create a publishable version of the Partial Budget Analysis Table.
A96: 9 | B96: Prices:
B97: a. Contains prices used throughout the workbook as well as relevant Producer Prices Paid Index values for updating prices as needed.
B98: b. Organic crop prices are included for producers who are certified organic. These prices will be used automatically if the user enters "Y" or "y" for 'Is this an organic farm? (Y/N)' in the Orchard Info tab.
B99: c. Lists the data sources for the prices.
A100: 10 | B100: Machinery Costs:
B101: a. Contains per acre fertilizer application machinery costs used by the Nutrient Management tab.
B102: d. You can add to this list as needed, but we encourage only using published prices as they include depreciation, labor, fuel, interest, discount value, salvage cost, etc. Most farmers will undervalue their per acre machinery costs.
A104: 11 | B104: Ref 1 - UCDavis SJV North Budget
B105: a. This is a table of various costs associated with producing almonds from the UC Davis San Joaquin Valley North Almond Production Budget (micro-sprinkler irrigation system).
B106: b. We encourage users to reference these costs and use as needed in the tool.
A107: 12 | B107: Ref 2 - UCDavis SJV South Budget
B108: a. This is a table of various costs associated with producing almonds from the UC Davis San Joaquin Valley South Almond Production Budget (double-line drip irrigation system).
B109: b. We encourage users to reference these costs and use as needed in the tool.
B112: Data Sources for Default Values
B113: Item | C113: Release Date | D113: Source
B114: Crop Prices, Non-organic | C114: February | D114: USDA NASS. (2010-2023). Survey - Commodity Price Received: Price Received Measured in $/lb (California only). QuickStats. Retrieved May 10, 2024, from https://quickstats.nass.usda.gov/results/1EE7EA82-BF2D-3153-A98A-49AE038F23EE
B115: Crop Prices, Organic | C115: Dec. 15, 2022 | D115: USDA NASS. (2022, December 15). Certified Organic Survey 2021 Summary: Table 8. Certified Organic Tree Nuts Harvested and Value of Sales. Retrieved May 10, 2024, from www.nass.usda.gov/Surveys/Guide_to_NASS_Surveys/Organic_Production/index.php
B116: Fertilizer Prices | C116: January | D116: Iowa State University Extension and Outreach. (2020-2024). Ag Decision Maker: Estimated Costs of Crop Production in Iowa (File A1-20). Retrieved on February 6, 2024 from https://www.extension.iastate.edu/agdm/crops/html/a1-20.html
B117: Labor Rate, Farm Manager | C117: March 31 | D117: U.S. Bureau of Labor Statistics. (April 3, 2024). 45-1011 First-Line Supervisors of Farming, Fishing, and Forestry Workers. Occupational Employment and Wages, May 2023. Retrieved May 10 2024, from https://www.bls.gov/oes/current/oes_nat.htm#45-0000
B118: Machinery Costs for Anhydrous Ammonia Applicators & Sprayers | C118: Biennially | D118: University of Illinois at Urbana-Champaign Department of Ag and Consumer Economics. (September 2023). Farm Business Management Machinery Cost Estimates: Field Operations. Retrieved on November 28, 2023 from https://farmdoc.illinois.edu/management#handbook
B119: Machinery Costs for Fertilizer Applications | C119: March | D119: Iowa State University Extension and Outreach. (March 2023). Ag Decision Maker: 2023 Iowa Farm Custom Rate Survey (File A3-10). Retrieved on November 28, 2023 from https://www.extension.iastate.edu/agdm/crops/html/a3-10.html
B120: Prices Paid Index | C120: Monthly | D120: USDA NASS. (Ongoing). Prices Paid: Indexes for All Items and Production Items by Month - United States. Retrieved February 6, 2024, from https://www.nass.usda.gov/Charts_and_Maps/Agricultural_Prices/index.php
B121: Prices Received Index | C121: Monthly | D121: USDA NASS. (Ongoing). Prices Received: Indexes for Ag, Crop, and Livestock Production by Month - United States. Retrieved February 6, 2024, from https://www.nass.usda.gov/Charts_and_Maps/Agricultural_Prices/index.php

Sheet Orchard Info
A1: ORCHARD GENERAL INFORMATION
A3: ABOUT THIS TAB:
A4: The Orchard Info tab records very general information including grower name, farm name, location, watershed, size of orchard and Study Area, Tree Planting Year, Study Area soil health practices, time spent each year on educational activities, and grower's fertilizer and average price received (optional).
B8: Grower Name | C8: Orchard Name | D8: County | E8: State
B10: Watershed Name
B14: Total Orchard Acres
B15: Study Area Acres*
B16: Study Area Planting Year
B17: Is this an organic farm? (Y/N)*
B18: *Required
B20: Study Area Soil Health Practices for Analysis
B21: TIP: Enter an "x" in all that apply.
B22: Soil Health Practice
B23: Nutrient Management
B24: Cover Crops/Conservation Cover
B25: Mulching
B26: Compost Application
B29: Time Spent on Educational Activities
B30: TIPS: (1) Do not enter hours for individual practices if using Combined Practice Learning Activities. (2) Use Combined Practice Learning Activities only when the farmer cannot separate hours spent by practice.
B33: Conservation Practice | C33: Hours/Year | D33: Total $/Yr*
B34: Nutrient Management Learning Activities | D34: =IF(C$41>0,C$41*C34,C34*Prices!$C$9) -> 0
B35: Cover Crops Learning Activities | D35: =IF(C$41>0,C$41*C35,C35*Prices!$C$9) -> 0
B36: Mulching Learning Activities | D36: =IF(C$41>0,C$41*C36,C36*Prices!$C$9) -> 0
B37: Compost Application Learning Activities | D37: =IF(C$41>0,C$41*C37,C37*Prices!$C$9) -> 0
B39: Combined Practices Learning Activities | D39: =IF(SUM(D34:D37)>0,"See Tip 3",IF(C$41>0,C$41*C39,C39*Prices!$C$9)) -> 0
C40: $/Hr
B41: Grower's Stated Hourly Rate (Optional)
B42: *Total $/Yr is calculated using Grower's Hourly Rate (if provided) or default hourly labor rate (see "Prices" tab) multiplied by the number of learning activity hours by practice.
B45: Grower's Fertilizer and Crop Prices (optional)
B46: TIP: If the grower provided values, enter them here and they will be used throughout the workbook. If no values entered, national averages will be used throughout the workbook (see "Prices" tab).
B47: Fertilizer | C47: Unit | D47: $/Unit
B48: Nitrogen | C48: Lb
B49: Phosphorus | C49: Lb
B50: Potassium | C50: Lb
B51: Micronutrient Cocktail | C51: Lb
B52: Crop Prices | C52: Unit | D52: $/Unit
B53: Almond | C53: Lb
B54: Pistachio | C54: Lb
B55: Walnut | C55: Lb

Sheet Nutrient Mgt
A1: Changes in Nutrient Management Activities
A3: ABOUT THIS TAB:
A4: The Nutrient Management (NM) tab calculates economic effects following a change in NM activities for soil health including changes in: (1) machinery costs associated with fertilizer application; (2) yield; (3) fertilizer use; (4) pesticide use; and (5) other benefits or costs as identified by the grower. If a particular effect cannot be attributed solely to a change in NM activities, the user can enter it on the Combined Effects tab. All effects are calculated on an annual basis per acre and for the entire Study Area.
B9: Change in Machinery Costs due to Change in Nutrient Management Activities
B10: TIPS: (1) Only enter benchmark and current machinery operations if there was a change in nutrient management activities for soil health. Make sure you are not double counting if additional soil health practices are being analyzed. (2) Review the list of machinery and associated costs (included in the dropdown) on the "Machinery Costs" tab to determine the machinery that most closely matches your equipment. Follow instructions on "Machinery Costs" tab to add your own machinery description and cost. (3) Benchmark NM Description should briefly describe the field operation(s) used to apply nutrients prior to change in NM activities for soil health. Select Benchmark NM Machinery from the dropdown list that best matches the machinery used to apply nutrients prior to change. Assess the cost/ac. (4) Current NM Description should briefly describe the field operation(s) used to apply nutrients currently. Select Current NM Machinery from the dropdown list that best matches the machinery used to apply nutrients currently. Assess the cost/ac. (5) User must enter Passes, Gallons, Hours per Year. (6) User must adjust the number of passess accordingly if machinery costs do not apply to entire study area nor annually.
B23: Benchmark NM Description:
B24: Study Area Acres: | C24: ='Orchard Info'!C15 -> 0
B25: Benchmark NM Machinery | C25: Cost/Ac | D25: Passes, Gallons, or Hours per Year | E25: Total Cost/Ac
C26: =IFERROR(VLOOKUP(B26,'Machinery Costs'!$B$19:$E$39,4,FALSE),0) -> 0 | E26: =IFERROR(C26*D26, "See 'Machinery Costs' tab") -> 0
C27: =IFERROR(VLOOKUP(B27,'Machinery Costs'!$B$19:$E$39,4,FALSE),0) -> 0 | E27: =IFERROR(C27*D27, "See 'Machinery Costs' tab") -> 0
C28: =IFERROR(VLOOKUP(B28,'Machinery Costs'!$B$19:$E$39,4,FALSE),0) -> 0 | E28: 0
B29: Benchmark Cost ($/Ac) | E29: =SUM(E26:E28) -> 0
B30: Current NM Description:
B31: Current NM Machinery | C31: Cost/Ac | D31: Passes, Gallons, or Hours per Year | E31: Total Cost/Ac
C32: =IFERROR(VLOOKUP(B32,'Machinery Costs'!$B$19:$E$39,4,FALSE),0) -> 0 | E32: =IFERROR(C32*D32, "See 'Machinery Costs' tab") -> 0
C33: =IFERROR(VLOOKUP(B33,'Machinery Costs'!$B$19:$E$39,4,FALSE),0) -> 0 | E33: 0
C34: =IFERROR(VLOOKUP(B34,'Machinery Costs'!$B$19:$E$39,4,FALSE),0) -> 0 | E34: 0
B35: Current Cost ($/Ac) | E35: =SUM(E32:E34) -> 0
B38: Change in Machinery Costs due to Change in Nutrient Management Activities
C39: Costs
B40: Benchmark Costs ($/Ac) | C40: =E29 -> 0
B41: Current Costs ($/Ac) | C41: =E35 -> 0
B42: Per Acre Change ($/Ac) (negative value means decrease in cost) | C42: =C41-C40 -> 0
B43: Total Change ($) | C43: =IFERROR(C42*C24,0) -> 0
B46: Yield Impacts due to Change in Nutrient Management Activities
B47: TIPS: (1) We suggest only entering changes in yield below if NM is the only soil health practice analyzed, otherwise enter yield impacts in the Combined Practice Effects tab. (2) Benchmark average yield should reflect the average yield under benchmark practices before changing NM for soil health. Make sure to account for the age of the almond tree when assessing yield records. Consider yield values only after full-bearing age. (3) User must enter their "Benchmark Average Yield" AND "% Yield Increase/Decrease" OR "Change in Average Yield". If user enters both of the latter, calculation will use % yield change value. (4) User must answer "Is this an organic farm? (Y/N)" on the "Orchard Info" tab. The table will use the standard crop price as default otherwise.
B57: Yield Impacts | C57: Amount
B58: Tree Nut Type
B59: Benchmark Average Yield (Lbs/Acre)
B60: AND
B61: % Yield Increase/Decrease due to Change in NM (+/-)
B62: Calculated Change in Average Yield (+/- Lbs/Acre) | C62: =C59*C61 -> 0
B63: AND/OR
B64: Change in Average Yield due to Change in NM (+/- Lbs/Acre)
B66: Price per Pound 1 | C66: =IF(AND($C$58="Almond",'Orchard Info'!D53>0),'Orchard Info'!D53,IF(AND($C$58="Almond",'Orchard Info'!$C$17="Y"),Prices!C43,IF($C$58="Almond",Prices!$C$19,IF(AND($C$58="Pistachio",'Orchard Info'!D54>0),'Orchard Info'!D54,IF(AND($C$58="Pistachio",'Orchard Info'!$C$17="Y"),Prices!D43,IF($C$58="Pistachio",Prices!$D$19,IF(AND($C$58="Walnut",'Orchard Info'!D55>0),'Orchard Info'!D55,IF(AND($C$58="Walnut",'Orchard Info'!$C$17="Y"),Prices!E43,IF($C$58="Walnut",Prices!$E$19,"0"))))))))) -> 0
B68: Per Acre Change ($/Acre) | C68: =IF(C61>0,C62*C66,C64*C66) -> 0
B69: Acres | C69: ='Orchard Info'!C15 -> 0
B70: Total Change ($) | C70: =C69*C68 -> 0
B71: 1 Grower's price or national average non-organic price or organic price.
B74: Impact of Change in Nutrient Management Activities on Primary Nutrients Used
B75: TIPS: (1) Only enter changes due to change in NM activities for soil health. Make sure you are not double counting if additional soil health practices are being analyzed. (2) Enter negative values to indicate savings and positive values to indicate an increase in cost. (3) If grower has changed the form of nitrogen or potassium, skip this table and use the next two tables (Impact of Changing Form of Nitrogen Applied and Impact of Changing Form of Potassium Applied) to record these changes rather than entering the changes in the table below. (4) User must enter a price for micronutrients on Orchard Info tab if quantity of micronutrient cocktail has changed.
B83: Nutrient Impacts | C83: =IF($C$58="","",$C$58) -> 
B84: Nitrogen (+/- Lbs/Ac)
B85: Change in Nitrogen Cost/Ac | C85: =IF(F107<>0,F107,IF('Orchard Info'!D48>0,'Orchard Info'!D48*'Nutrient Mgt'!C84,C84*Prices!C61)) -> 0
B86: Phosphorus (+/- Lbs/Ac)
B87: Change in Phosphorus Cost/Ac | C87: =IF('Orchard Info'!D49>0,'Orchard Info'!D49*'Nutrient Mgt'!C86,C86*Prices!C62) -> 0
B88: Potassium (+/- Lbs/Ac)
B89: Change in Potassium Cost/Ac | C89: =IF(F119<>0,F119,IF('Orchard Info'!D50>0,'Orchard Info'!D50*'Nutrient Mgt'!C88,C88*Prices!C63)) -> 0
B90: Change in Micronutrient Cocktail Lb/Ac
B91: Change in Micronutrient Cocktail Cost/Ac | C91: =C90*'Orchard Info'!D51 -> 0
B92: Per Acre Change ($/Ac) | C92: =C85+C87+C89+C91 -> 0
B93: Acres | C93: ='Orchard Info'!C15 -> 0
B94: Total Change ($) | C94: =C93*C92 -> 0
B98: Impact of Changing Form of Nitrogen Applied
B99: TIPs: (1) Impact of Changing Form of Nitrogen Applied table is designed to calculate the cost difference between benchmark and current forms and amounts of Nitrogen. (2) Enter a description of the Benchmark Form of Nitrogen along with $/Lb and Lbs/Ac in the first row. Then enter a description of the Current Form of Nitrogen along with $/Lb and Lbs/Ac in the second row.
B104: Time Period | C104: Form of Nitrogen | D104: $/Lb | E104: Lbs/Ac | F104: Cost/Ac | G104: Total
B105: Benchmark | F105: =E105*D105 -> 0 | G105: =F105*'Orchard Info'!C$15 -> 0
B106: Current | F106: =E106*D106 -> 0 | G106: =F106*'Orchard Info'!C$15 -> 0
B107: Change in Cost | F107: =F106-F105 -> 0 | G107: =G106-G105 -> 0
B110: Impact of Changing Form of Potassium Applied
B111: TIPs: (1) Impact of Changing Form of Potassium Applied table is designed to calculate the cost difference between benchmark and current forms and amounts of Potassium. (2) Enter a description of the Benchmark Form of Potassium along with $/Lb and Lbs/Acre in the first row. Then enter a description of the Current Form of Potassium along with $/Lb, and Lbs/Acre in the second row.
B116: Time Period | C116: Form of Potassium | D116: $/Lb | E116: Lbs/Ac | F116: Cost/Ac | G116: Total
B117: Benchmark | F117: =E117*D117 -> 0 | G117: =F117*'Orchard Info'!C$15 -> 0
B118: Current | F118: =E118*D118 -> 0 | G118: =F118*'Orchard Info'!C$15 -> 0
B119: Change in Cost | F119: =F118-F117 -> 0 | G119: =G118-G117 -> 0
B122: Impact of Change in Nutrient Management Activities on Pesticides Used
B123: TIPS: (1) User must enter Cost/Ac and % Change for calculations to work. (2) Enter negative values for % change values to indicate savings and positive values to indicate an increase in cost. (3) Only enter changes due to change in NM activities for soil health. Make sure you are not double counting if additional soil health practices are being analyzed.
B128: Pesticide Impacts | C128: =IF($C$58="","",$C$58) -> 
B129: Herbicide Cost/Ac
B130: Herbicide % Change (+/-)
B131: Herbicide Change in Cost/Ac | C131: =C130*C129 -> 0
B132: Insecticide Cost/Ac
B133: Insecticide % Change (+/-)
B134: Insecticide Change in Cost/Ac | C134: =C133*C132 -> 0
B135: Fungicide Cost/Ac
B136: Fungicide % Change (+/-)
B137: Fungicide Change in Cost/Ac | C137: =C136*C135 -> 0
B138: Per Acre Change ($/Ac) | C138: =C131+C134+C137 -> 0
B139: Acres | C139: ='Orchard Info'!C15 -> 0
B140: Total Change ($) | C140: =C139*C138 -> 0
B143: Annual Financial Assistance Payments for Change in Nutrient Management Activities
B144: Note: Any financial assistance payments listed are not included in the partial budget analysis because cost-share is temporary and not received by all, but can be noted in the footnote of PBA table.
B146: Source | C146: $/Ac/Yr | D146: Acres Funded | E146: Total | F146: Weighted Average ($/Ac)
E147: =D147*C147 -> 0
E148: =D148*C148 -> 0
B149: Total Received | D149: =SUM(D147:D148) -> 0 | E149: =SUM(E147:E148) -> 0 | F149: =IFERROR(E149/D149,0) -> 0
B152: Other Benefits and Costs due to Change in Nutrient Management Activities
B153: TIPS: (1) Description should detail the benefits, costs, or changes in activities experienced and responsible for change in Per Acre Value. (2) Per Acre Value should be positive for BOTH Positive Effects/Decreased Costs and Negative Effects/Increased Costs. (3) Acres should not exceed study area acreage. The default value is Study Area acreage.
B157: Positive Effects/Decreased Costs
B158: Description of Other Benefit(s) | C158: $/Ac | D158: Acres | E158: Total Benefit
D159: ='Orchard Info'!C$15 -> 0 | E159: =D159*C159 -> 0
D160: ='Orchard Info'!C$15 -> 0 | E160: 0
D161: ='Orchard Info'!C$15 -> 0 | E161: 0
B162: Negative Effects/Increased Costs
B163: Description of Other Cost(s) | C163: $/Ac | D163: Acres | E163: Total Cost
D164: ='Orchard Info'!C$15 -> 0 | E164: =D164*C164 -> 0
D165: ='Orchard Info'!C$15 -> 0 | E165: =D165*C165 -> 0
D166: ='Orchard Info'!C$15 -> 0 | E166: 0

Sheet Cover Crop
A1: Changes due to Adopting Cover Crops
A2: ABOUT THIS TAB:
A3: The Cover Crop tab calculates the economic effects attributed to adopting cover crops or permanent conservation cover (i.e., resident vegetation.) Economic effects on this tab include changes in: (1) cover costs; (2) almond yield; (3) fertilizer applied; (4) pesticides used; and (5) soil erosion. Additional economic effects (benefits and costs) not already covered can be entered in the "Other Cover Crop Benefits and Costs" tables. If a particular effect cannot be attributed solely to introducing a cover, the user can enter it on the Combined Effects tab. All effects are calculated on an annual basis per acre and for the Study Area. Note: This Tool is setup to only analyze the switch from no cover crop to planting a cover crop. This Tool does not analyze switching of cover crop species, changes in establishment methods, nor changes in termination methods, etc.
B12: Cover Crop Costs
B13: TIPS: For data entry: Cover Species or Mix Description: Describe species planted. Acres Planted: Enter the acreage currently planted in the specific cover crop. For example, if the cover is planted every other row, then enter half the Study Area acres. Acres planted cannot exceed the Study Area acreage. Cover Crop Seed Cost*: Enter per acre cost of cover crop seed. Establishment Interval: Enter the number of years between seeding (e.g., seeding every other year = 2, every year = 1) Establishment Cost*: Include costs such as seedbed preparation (e.g., disking) and planting costs on average Termination Cost*: Enter average termination cost if the cover does not winter-kill. E.g., disking, spraying (equipment and herbicide applied), or tilling. Maintenance Costs: Average annual cost for mowing, spraying, or weed control. Other Costs: Any other costs associated with growing cover crops. *Note: Seed, establishment, and termination costs are prorated over the establishment interval.
B27: Cover Type, Cost, and Planting Interval
B28: Cover Species or Mix Description
B29: Acres Planted
B30: Cover Crop Seed Cost ($/Acre)
B31: Establishment Interval (Years)
B32: Establishment Cost ($/Acre)
B33: Termination Cost ($/Acre)
B34: Maintenance Cost ($/Acre)
B35: Other Costs ($/Acre)
B36: Per Acre Cost by Cover Crop ($/Ac) | C36: =IFERROR(IF(C31>0,(((C30+C32+C33)/C31)+C34+C35),C30+C32+C33+C34+C35),0) -> 0 | D36: =IFERROR(IF(D31>0,(((D30+D32+D33)/D31)+D34+D35),D30+D32+D33+D34+D35),0) -> 0 | E36: =IFERROR(IF(E31>0,(((E30+E32+E33)/E31)+E34+E35),E30+E32+E33+E34+E35),0) -> 0
B37: Total Cost by Cover Crop ($) | C37: =IFERROR(C29*C36,0) -> 0 | D37: =IFERROR(D29*D36,0) -> 0 | E37: =IFERROR(E29*E36,0) -> 0
B39: Study Area Total Cover Crop Cost ($) | E39: =SUM(C37:E37) -> 0
B40: Study Area Per Acre Cover Crop Cost (Weighted Average $/ac) | E40: =IFERROR(E39/SUM(C29:E29),0) -> 0
B43: Yield Impacts due to Cover Crop
B44: TIPS: (1) We suggest only entering changes in yield below if cover cropping is the only soil health practice analyzed, otherwise enter yield impacts in the Combined Practice Effects tab. (2) Benchmark average yield should reflect the average yield under benchmark practices before adopting cover. Make sure to account for the age of the almond tree when assessing yield records. Consider yield values only after full-bearing age. (3) User must enter their "Benchmark Average Yield" AND "% Yield Increase/Decrease" OR "Change in Average Yield". If user enters both of the latter, calculation will use % yield change value. (4) User must answer "Is this an organic farm? (Y/N)" on the "Orchard Info" tab. The table will use the standard crop price as default otherwise.
B53: Yield Impacts | C53: Amount
B54: Tree Nut Type
B55: Benchmark Average Yield (Lbs/Acre)
B56: AND
B57: % Yield Increase/Decrease due to Cover (+/-)
B58: Calculated Change in Average Yield due to Cover (Lbs/Acre) | C58: =C55*C57 -> 0
B59: AND/OR
B60: Change in Average Yield due to Cover (+/- Lbs/ Acre)
B62: Price per Pound 1 | C62: =IF(AND($C$54="Almond",'Orchard Info'!D53>0),'Orchard Info'!D53,IF(AND($C$54="Almond",'Orchard Info'!$C$17="Y"),Prices!C43,IF($C$54="Almond",Prices!$C$19,IF(AND($C$54="Pistachio",'Orchard Info'!D54>0),'Orchard Info'!D54,IF(AND($C$54="Pistachio",'Orchard Info'!$C$17="Y"),Prices!D43,IF($C$54="Pistachio",Prices!$D$19,IF(AND($C$54="Walnut",'Orchard Info'!D55>0),'Orchard Info'!D55,IF(AND($C$54="Walnut",'Orchard Info'!$C$17="Y"),Prices!E43,IF($C$54="Walnut",Prices!$E$19,"0"))))))))) -> 0
B64: Per Acre Change ($/Acre) | C64: =IF(C55>0,(C62*C58),C60*C62) -> 0
B65: Acres | C65: ='Orchard Info'!C15 -> 0
B66: Total Change ($) | C66: =C64*C65 -> 0
B67: 1 Grower's price or national average non-organic price or organic price
B71: Impact of Cover Crop on Primary Nutrients Used
B72: TIPS: (1) Only enter changes in primary nutrients due to adoption of cover crops. Make sure you are not double counting if additional soil health practices are being analyzed. (2) Enter negative values to indicate savings and positive values to indicate an increase in cost. (3) User must enter a price for micronutrients on Orchard Info tab if quantity of micronutrient cocktail has changed.
B77: Nutrients Used | C77: =IF($C$54="","",$C$54) -> 
B78: Nitrogen (+/- Lbs/Ac)
B79: Change in Nitrogen Cost/Ac | C79: =IF('Orchard Info'!D48>0,'Orchard Info'!D48*'Cover Crop'!C78,C78*Prices!C61) -> 0
B80: Phosphorus (+/- Lbs/Ac)
B81: Change in Phosphorus Cost/Ac | C81: =IF('Orchard Info'!D49>0,'Orchard Info'!D49*'Cover Crop'!C80,C80*Prices!C62) -> 0
B82: Potassium (+/- Lbs/Ac)
B83: Change in Potassium Cost/Ac | C83: =IF('Orchard Info'!D50>0,'Orchard Info'!D50*'Cover Crop'!C82,C82*Prices!C63) -> 0
B84: Change in Micronutrient Cocktail Lb/Ac
B85: Change in Micronutrient Cocktail Cost/Ac | C85: =C84*'Orchard Info'!D51 -> 0
B86: Per Acre Change ($/Ac) | C86: =C79+C81+C83+C85 -> 0
B87: Acres | C87: ='Orchard Info'!C15 -> 0
B88: Total Change ($) | C88: =C87*C86 -> 0
B92: Impact of Cover Crop on Pesticide Use
B93: TIPS: (1) Only enter changes in pesticide costs due to adoption of cover crops. Make sure you are not double counting if additional soil health practices are being analyzed. (2) User must enter Cost/Ac and % Change for calculations to work. (3) Enter negative values for % change values to indicate savings and positive values to indicate an increase in cost. (4) If cover crop termination cost is included in the Cover Crop Costs table at the top of this sheet, do not enter increased herbicide cost in this table.
B100: Pesticide Impacts | C100: Amount
B101: Herbicide Cost/Ac
B102: Herbicide % Change (+/-)
B103: Herbicide Change in Cost/Ac | C103: =C102*C101 -> 0
B104: Insecticide Cost/Ac
B105: Insecticide % Change (+/-)
B106: Insecticide Change in Cost/Ac | C106: =C105*C104 -> 0
B107: Fungicide Cost/Ac
B108: Fungicide % Change (+/-)
B109: Fungicide Change in Cost/Ac | C109: =C108*C107 -> 0
B110: Per Acre Change ($/Ac) | C110: =C109+C106+C103 -> 0
B111: Acres | C111: ='Orchard Info'!C15 -> 0
B112: Total Change ($) | C112: =C111*C110 -> 0
B115: Value of Decreased Erosion due to Cover Crop
B116: TIPS: (1) We suggest only entering changes in erosion and/or repair costs here if cover is the only soil health practice analyzed, otherwise enter erosion impacts in the Combined Practice Effects tab. (2) Number of Acres is the area where the reduction in erosion was observed. This could be the entire area where you're using a cover crop in cases where slopes are relatively uniform throughout or, if the area is comprised of a combination of relatively flat areas and steeper ground, the acreage could be the portion encompassed by the steeper ground. (3) Options for Tons Reduced Erosion: a. Enter tons of reduced erosion results (Tons/Acre/Year) modeled using any sediment reduction tool, such as the Nutrient Tracking Tool; b. Enter the erosion reduction value from RUSLE-2 analysis if undertaken by your advisor; or c. Any value that seems reasonable based on soil including zero. (4) Total Annual Change in Repair Cost should only include changes in costs for repairs that occur within the Study Area. (5) Enter a negative value if cost of repairs has decreased and a positive value if cost of repairs increased.
B129: Productivity Benefits | C129: Amount
B130: Value of N and P per Ton of Soil | C130: =Prices!E73 -> 2.070616759
B131: Number of Acres1
B132: Tons Reduced Erosion (Tons/Acre/Year)
B133: Total Value ($/Year) | C133: =C130*C131*C132 -> 0
B134: AND/OR
B135: Reduced Mechanical Erosion Repair Due to Cover | C135: Amount
B136: Total Annual Change in Repair Cost (+/- $/Year)
B138: Value of Decreased Erosion for Study Area ($/Ac) | C138: =IFERROR(((-1*C136)+C133)/'Orchard Info'!$C$15,0) -> 0
B139: 1 Do not exceed study area acreage.
B142: Annual Financial Assistance Payments
B143: Note: Any financial assistance payments listed are not included in the partial budget analysis because cost-share is temporary and not received by all, but can be noted in the footnote of PBA table.
B145: Source | C145: $/Ac/Yr | D145: Acres Funded | E145: Total ($) | F145: Weighted Average ($/Ac)
E146: =D146*C146 -> 0
E147: =D147*C147 -> 0
B148: Total Received | D148: =SUM(D146:D147) -> 0 | E148: =SUM(E146:E147) -> 0 | F148: =IFERROR(E148/D148,0) -> 0
B151: Other Cover Crop Benefits and Costs
B152: TIPS: (1) Description should detail the benefits, costs, or changes in activities experienced and responsible for change in Per Acre Value. (2) Per Acre Value should be positive for BOTH Positive Effects/Decreased Costs and Negative Effects/Increased Costs. (3) Acres should not exceed study area acreage (or possibly not to exceed the acres planted in cover depending on benefit/cost.) The default value is Study Area Acreage.
B157: Positive Effects/Decreased Costs
B158: Description of Other Benefit(s) | C158: $/Ac | D158: Acres | E158: Total Benefit
E159: =D159*C159 -> 0
E160: 0
E161: 0
B162: Negative Effects/Increased Costs
B163: Description of Other Cost(s) | C163: $/Ac | D163: Acres | E163: Total Cost
E164: =D164*C164 -> 0
E165: =D165*C165 -> 0
E166: 0

Sheet Mulching
A1: Changes due to Adopting Mulching
A2: ABOUT THIS TAB:
A3: The Mulching tab calculates the economic effects attributed to recycling orchard prunings by chipping and leaving prunings on the orchard ground. Economic effects on this tab include changes in: (1) mulching costs; (2) yield; (3) fertilizer applied; (4) pesticides used; (5) and soil erosion. Additional economic effects (benefits and costs) not already covered can be entered in the "Other Cover Benefits and Costs" tables. If a particular effect cannot be attributed solely to introducing mulching, the user can enter it on the Combined Effects tab. All effects are calculated on an annual basis per acre.
B8: Change in Costs due to Mulching
B9: TIPS: (1) Complete the $/Acre field for all that apply. Leave blank if not applicable. (2) User may enter additonal "Activities" in the table below in the yellow cellss under Benchmark Activity or Current Activity.
B12: Benchmark Mulching Activity | C12: $/Acre
B13: Collecting prunings from the field
B14: Burning
B15: Transport to chipping facility
B16: Enter additional "activities" below
B19: Benchmark Cost ($/Ac) | C19: =SUM(C13:C18) -> 0
B21: Current Mulching Activity | C21: $/Acre
B22: In-field chopping in place
B23: Enter additional "activities" below
B27: Current Cost ($/Ac) | C27: =SUM(C22:C26) -> 0
B29: Per Acre Change ($/Ac) | C29: =C27-C19 -> 0
B30: Acres | C30: ='Orchard Info'!C15 -> 0
B31: Total Change ($) | C31: =C30*C29 -> 0
B34: Yield Impacts due to Mulching
B35: TIPS: (1) We suggest only entering changes in yield below if mulching is the only soil health practice analyzed, otherwise enter yield impacts in the Combined Practice Effects tab. (2) Benchmark average yield should reflect the average yield before adopting mulching. Make sure to account for the age of the almond tree when assessing yield records. Consider yield values only after full-bearing age. (3) User must enter their "Benchmark Average Yield" AND "% Yield Increase/Decrease" OR "Change in Average Yield". If user enters both of the latter, calculation will use % yield change value. (4) User must answer "Is this an organic farm? (Y/N)" on the "Orchard Info" tab. The table will use the standard crop price as default otherwise.
B44: Yield Impacts | C44: Amount
B45: Tree Nut Type
B46: Benchmark Average Yield (Lbs/Acre)
B47: AND
B48: % Yield Increase/Decrease due to Adopting Mulching (+/-)
B49: Calculated Change in Average Yield (Lbs/Acre) | C49: =C46*C48 -> 0
B50: AND/OR
B51: Change in Average Yield due to Adopting Mulching (+/- Lbs/Acre)
B53: Price per Pound 1 | C53: =IF(AND($C$45="Almond",'Orchard Info'!D53>0),'Orchard Info'!D53,IF(AND($C$45="Almond",'Orchard Info'!$C$17="Y"),Prices!C43,IF($C$45="Almond",Prices!$C$19,IF(AND($C$45="Pistachio",'Orchard Info'!D54>0),'Orchard Info'!D54,IF(AND($C$45="Pistachio",'Orchard Info'!$C$17="Y"),Prices!D43,IF($C$45="Pistachio",Prices!$D$19,IF(AND($C$45="Walnut",'Orchard Info'!D55>0),'Orchard Info'!D55,IF(AND($C$45="Walnut",'Orchard Info'!$C$17="Y"),Prices!E43,IF($C$51="Walnut",Prices!$E$19,"0"))))))))) -> 0
B55: Per Acre Change ($/Ac) | C55: =IF(C46>0,C49*C53,C51*C53) -> 0
B56: Acres | C56: ='Orchard Info'!C15 -> 0
B57: Total Change ($) | C57: =C56*C55 -> 0
B58: 1 Grower's price or national average non-organic price or organic price
B62: Impact of Mulching on Primary Nutrients Used
B63: TIPS: (1) Only enter changes in primary nutrients due to adoption of mulching. Make sure you are not double counting if additional soil health practices are being analyzed. (2) Enter negative values to indicate savings and positive values to indicate an increase in cost. (3) User must enter a price for micronutrients on Orchard Info tab if quantity of micronutrient cocktail has changed.
B68: Nutrients Used | C68: Amount
B69: Nitrogen (+/- Lbs/Ac)
B70: Change in Nitrogen Cost/Ac | C70: =IF('Orchard Info'!D48>0,'Orchard Info'!D48*Mulching!C69,C69*Prices!C61) -> 0
B71: Phosphorus (+/- Lbs/Ac)
B72: Change in Phosphorus Cost/Ac | C72: =IF('Orchard Info'!D49>0,'Orchard Info'!D49*Mulching!C71,C71*Prices!C62) -> 0
B73: Potassium (+/- Lbs/Ac)
B74: Change in Potassium Cost/Ac | C74: =IF('Orchard Info'!D50>0,'Orchard Info'!D50*Mulching!C73,C73*Prices!C63) -> 0
B75: Change in Micronutrient Cocktail Lb/Ac
B76: Change in Micronutrient Cocktail Cost/Ac | C76: =C75*'Orchard Info'!D51 -> 0
B77: Per Acre Change ($/Ac) | C77: =C70+C72+C74+C76 -> 0
B78: Acres | C78: ='Orchard Info'!C15 -> 0
B79: Total Change ($) | C79: =C78*C77 -> 0
B83: Impact of Mulching on Pesticide Use
B84: TIPS: (1) Only enter changes in pesticide costs due to adoption of mulching. Make sure you are not double counting if additional soil health practices are being analyzed. (2) User must enter Cost/Ac and % Change for calculations to work. (3) Enter negative values for % change values to indicate savings and positive values to indicate an increase in cost.
B89: Pesticide Impacts | C89: Amount
B90: Herbicide Cost/Ac
B91: Herbicide % Change (+/-)
B92: Herbicide Change in Cost/Ac | C92: =C91*C90 -> 0
B93: Insecticide Cost/Ac
B94: Insecticide % Change (+/-)
B95: Insecticide Change in Cost/Ac | C95: =C94*C93 -> 0
B96: Fungicide Cost/Ac
B97: Fungicide % Change (+/-)
B98: Fungicide Change in Cost/Ac | C98: =C97*C96 -> 0
B99: Per Acre Change ($/Ac) | C99: =C98+C95+C92 -> 0
B100: Acres | C100: ='Orchard Info'!C15 -> 0
B101: Total Change ($) | C101: =C100*C99 -> 0
B104: Value of Decreased Erosion due to Mulching
B105: TIPS: (1) We suggest only entering changes in erosion and repair costs here if mulching is the only soil health practice analyzed, otherwise enter erosion impacts in the Combined Practice Effects tab. (2) Number of Acres is the area where the reduction in erosion was observed. This could be the entire area where you're mulching in cases where slopes are relatively uniform throughout or, if the area is comprised of a combination of relatively flat areas and steeper ground, the acreage could be the portion encompassed by the steeper ground. (3) Options for Tons Reduced Erosion: a. Enter tons of reduced erosion results (Tons/Acre/Year) modeled using any sediment reduction tool, such as the Nutrient Tracking Tool; b. Enter the erosion reduction value from RUSLE-2 analysis if undertaken by your advisor; or c. Any value that seems reasonable based on soil including zero. (4) Total Annual Change in Repair Cost should only include changes in costs for repairs that occur within the Study Area. (5) Enter a negative value if cost of repairs has decreased and a positive value if cost of repairs increased.
B118: Productivity Benefits | C118: Amount
B119: Value of N and P per Ton of Soil | C119: =Prices!E73 -> 2.070616759
B120: Number of Acres1
B121: Tons Reduced Erosion (Tons/Acre/Year)
B122: Value ($/year) | C122: =C119*C120*C121 -> 0
B123: AND/OR
B124: Reduced Mechanical Erosion Repair Due to Mulching | C124: Amount
B125: Total Annual Change in Repair Cost ($/Year)
B127: Value of Decreased Erosion for Study Area ($/Ac) | C127: =IFERROR(((-1*C125)+C122)/'Orchard Info'!$C$15,0) -> 0
B128: 1 Do not exceed study area acreage.
B132: Annual Financial Assistance Payments
B133: Note: Any financial assistance payments listed are not included in the partial budget analysis because cost-share is temporary and not received by all, but can be noted in the footnote of PBA table.
B135: Source | C135: $/Ac/Yr | D135: Acres Funded | E135: Total ($) | F135: Weighted Average ($/Ac)
E136: =D136*C136 -> 0
E137: =D137*C137 -> 0
B138: Total Received | D138: =SUM(D136:D137) -> 0 | E138: =SUM(E136:E137) -> 0 | F138: =IFERROR(E138/D138,0) -> 0
B141: Other Mulching Benefits and Costs
B142: TIPS: (1) Description should detail the benefits, costs, or changes in activities experienced and responsible for change in Per Acre Value. (2) Per Acre Value should be positive for BOTH Positive Effects/Decreased Costs and Negative Effects/Increased Costs. (3) Acres should not exceed study area acreage. The default value is Study Area acreage.
B146: Positive Effects/Decreased Costs
B147: Description of Other Benefit(s) | C147: $/Ac | D147: Acres | E147: Total Benefit
E148: =D148*C148 -> 0
E149: 0
E150: 0
B151: Negative Effects/Increased Costs
B152: Description of Other Cost(s) | C152: $/Ac | D152: Acres | E152: Total Cost
E153: =D153*C153 -> 0
E154: =D154*C154 -> 0
E155: 0

Sheet Compost Application
A1: Changes due to Compost Application
A2: ABOUT THIS TAB:
A3: The Compost Application tab calculates the economic effects attributed to applying compost to almond orchards. Economic effects on this tab include changes in: (1) compost costs; (2) almond yield; (3) fertilizer applied; (4) pesticides used; (5) and soil erosion. Additional economic effects (benefits and costs) not already covered can be entered in the "Other Compost Benefits and Costs" tables. If a particular effect cannot be attributed solely to applying compost, the user can enter it on the Combined Effects tab. All effects are calculated on an annual basis per acre.
B8: Compost Application Cost
B9: TIPS: (1) User must enter Frequency, which means the number of years between applications. For example, enter 2 if compost is applied every other year, 1 for every year, and .5 for twice a year, etc. (2) % of Study Area Acreage that Compost Cost Applies is important to adjust for the making and purchasing of compost material. This column allows you to adjust your cost based on how you calculate them. For example, 100% would mean you think about per acre costs spread across the Study Area, whereas 50% means that your per acre costs are only applied to 50% of the Study Area acreage that needs mulching. Note: The spreading of compost cost applies to 100% of Study Area because the cost is the same no matter if compost is only applied to tree rows, alleys, or both. (3) User may enter additional compost costs in additional rows of yellow cells, providing a detailed description in Compost Material & Application column.
B20: Compost Material & Application | C20: $/Ac | D20: Frequency | E20: % of Study Area Acreage that Cost Applies: | F20: Adj. $/Ac
B21: Making Compost | F21: =IFERROR((C21/D21)*E21,0) -> 0
B22: Purchasing Compost | F22: =IFERROR((C22/D22)*E22,0) -> 0
B23: Spreading Compost | E23: 1 | F23: 0
F24: 0
F25: 0
B26: Study Area Per Acre Cost ($/Ac) | F26: =SUM(F21:F25) -> 0
B27: Acres | F27: ='Orchard Info'!C15 -> 0
B28: Study Area Total Cost ($) | F28: =F27*F26 -> 0
B31: Yield Impacts due to Compost Application
B32: TIPS: (1) We suggest only entering changes in yield below if compost application is the only soil health practice analyzed, otherwise enter yield impacts in the Combined Practice Effects tab. (2) Benchmark average yield should reflect the average yield before adopting compost. Make sure to account for the age of the almond tree when assessing yield records. Consider yield values only after full-bearing age. (3) User must enter their "Benchmark Average Yield" AND "% Yield Increase/Decrease" OR "Change in Average Yield". If user enters both of the latter, calculation will use % yield change value. (4) User must answer "Is this an organic farm? (Y/N)" on the "Orchard Info" tab. The table will use the standard crop price as default otherwise.
B41: Yield Impacts | C41: Amount
B42: Tree Nut Type
B43: Benchmark Average Yield (Lbs/Acre)
B44: AND
B45: % Yield Increase/Decrease due to Compost (+/-)
B46: Calculated Change in Average Yield (Lbs/Acre) | C46: =C43*C45 -> 0
B47: AND/OR
B48: Change in Average Yield due to Compost (+/- Lbs/Acre)
B50: Price per Pound 1 | C50: =IF(AND($C$42="Almond",'Orchard Info'!D53>0),'Orchard Info'!D53,IF(AND($C$42="Almond",'Orchard Info'!$C$17="Y"),Prices!C43,IF($C$42="Almond",Prices!$C$19,IF(AND($C$42="Pistachio",'Orchard Info'!D54>0),'Orchard Info'!D54,IF(AND($C$42="Pistachio",'Orchard Info'!$C$17="Y"),Prices!D43,IF($C$42="Pistachio",Prices!$D$19,IF(AND($C$42="Walnut",'Orchard Info'!D55>0),'Orchard Info'!D55,IF(AND($C$42="Walnut",'Orchard Info'!$C$17="Y"),Prices!E43,IF($C$42="Walnut",Prices!$E$19,"0"))))))))) -> 0
B52: Per Acre Change ($/Ac) | C52: =IF(C43>0,C46*C50,C48*C50) -> 0
B53: Acres | C53: ='Orchard Info'!C15 -> 0
B54: Total Change ($) | C54: =C53*C52 -> 0
B55: 1 Grower's price or national average non-organic price or organic price
B59: Impact of Compost Application on Primary Nutrients Used
B60: TIPS: (1) Only enter changes in primary nutrients due to adoption of mulching. Make sure you are not double counting if additional soil health practices are being analyzed. (2) Enter negative values to indicate savings and positive values to indicate an increase in cost. (3) User must enter a price for micronutrients on Orchard Info tab if quantity of micronutrient cocktail has changed.
B65: Nutrients Used | C65: Amount
B66: Nitrogen (+/- Lbs/Ac)
B67: Change in Nitrogen Cost/Ac | C67: =IF('Orchard Info'!D48>0,'Orchard Info'!D48*'Compost Application'!C66,C66*Prices!C61) -> 0
B68: Phosphorus (+/- Lbs/Ac)
B69: Change in Phosphorus Cost/Ac | C69: =IF('Orchard Info'!D49>0,'Orchard Info'!D49*'Compost Application'!C68,C68*Prices!C62) -> 0
B70: Potassium (+/- Lbs/Ac)
B71: Change in Potassium Cost/Ac | C71: =IF('Orchard Info'!D50>0,'Orchard Info'!D50*'Compost Application'!C70,C70*Prices!C63) -> 0
B72: Change in Micronutrient Cocktail Lb/AC
B73: Change in Micronutrient Cocktail Cost/Ac | C73: =C72*'Orchard Info'!D51 -> 0
B74: Per Acre Change ($/Ac) | C74: =C67+C69+C71+C73 -> 0
B75: Acres | C75: ='Orchard Info'!C15 -> 0
B76: Total Change ($) | C76: =C75*C74 -> 0
B80: Impact of Compost Application on Pesticide Use
B81: TIPS: (1) Only enter changes in pesticide costs due to adoption of compost. Make sure you are not double counting if additional soil health practices are being analyzed. (2) User must enter Cost/Ac and % Change for calculations to work. (3) Enter negative values for % change values to indicate savings and positive values to indicate an increase in cost.
B86: Pesticide Impacts | C86: Amount
B87: Herbicide Cost/Ac
B88: Herbicide % Change (+/-)
B89: Herbicide Change in Cost/Ac | C89: =C88*C87 -> 0
B90: Insecticide Cost/Ac
B91: Insecticide % Change (+/-)
B92: Insecticide Change in Cost/Ac | C92: =C91*C90 -> 0
B93: Fungicide Cost/Ac
B94: Fungicide % Change (+/-)
B95: Fungicide Change in Cost/Ac | C95: =C94*C93 -> 0
B96: Per Acre Change ($/Ac) | C96: =C95+C92+C89 -> 0
B97: Acres | C97: ='Orchard Info'!C15 -> 0
B98: Total Change ($) | C98: =C97*C96 -> 0
B101: Value of Decreased Erosion due to Compost Application
B102: TIPS: (1) We suggest only entering changes in erosion and repair costs here if composting is the only soil health practice analyzed, otherwise enter erosion impacts in the Combined Practice Effects tab. (2) Number of Acres is the area where the reduction in erosion was observed. This could be the entire area where you're using compost in cases where slopes are relatively uniform throughout or, if the area is comprised of a combination of relatively flat areas and steeper ground, the acreage could be the portion encompassed by the steeper ground. (3) Options for Tons Reduced Erosion: a. Enter tons of reduced erosion results (Tons/Acre/Year) modeled using any sediment reduction tool, such as the Nutrient Tracking Tool; b. Enter the erosion reduction value from RUSLE-2 analysis if undertaken by your advisor; or c. Any value that seems reasonable based on soil including zero. (4) Total Annual Change in Repair Cost should only include changes in costs for repairs that occur within the Study Area. (5) Enter a negative value if cost of repairs has decreased and a positive value if cost of repairs increased.
B115: Productivity Benefits | C115: Amount
B116: Value of N and P per Ton of Soil | C116: =Prices!E73 -> 2.070616759
B117: Number of Acres1
B118: Tons Reduced Erosion (Tons/Acre/Year)
B119: Total Value ($/year) | C119: =C116*C117*C118 -> 0
B120: AND/OR
B121: Reduced Mechanical Erosion Repair due to Compost Application | C121: Amount
B122: Total Annual Change in Repair Cost ($/Year)
B124: Value of Decreased Erosion for Study Area ($/Ac) | C124: =IFERROR(((-1*C122)+C119)/'Orchard Info'!$C$15,0) -> 0
B125: 1 Do not exceed study area acreage.
B129: Annual Financial Assistance Payments
B130: Note: Any financial assistance payments listed are not included in the partial budget analysis because cost-share is temporary and not received by all, but can be noted in the footnote of PBA table.
B132: Source | C132: $/Ac/Yr | D132: Acres Funded | E132: Total ($) | F132: Weighted Average ($/Ac)
E133: =D133*C133 -> 0
E134: =D134*C134 -> 0
B135: Total Received | D135: =SUM(D133:D134) -> 0 | E135: =SUM(E133:E134) -> 0 | F135: =IFERROR(E135/D135,0) -> 0
B138: Other Compost Application Benefits and Costs
B139: TIPS: (1) Description should detail the benefits, costs, or changes in activities experienced and responsible for change in Per Acre Value. (2) Per Acre Value should be positive for BOTH Positive Effects/Decreased Costs and Negative Effects/Increased Costs. (3) Acres should not exceed study area acreage. The default value is Study Area acreage.
B140: Positive Effects/Decreased Costs
B141: Description of Other Benefit(s) | C141: $/Ac | D141: Acres | E141: Total Benefit
E142: =D142*C142 -> 0
E143: =D143*C143 -> 0
E144: =D144*C144 -> 0
B145: Negative Effects/Increased Costs
B146: Description of Other Cost(s) | C146: $/Ac | D146: Acres | E146: Total Cost
E147: =D147*C147 -> 0
E148: =D148*C148 -> 0
E149: =D149*C149 -> 0

Sheet Combined Practice Effects
B1: Changes due to the Combination of Soil Health Practices
B2: Use this page to calculate effects that cannot be attributed to just one practice
A4: ABOUT THIS TAB:
A5: The Combined Practice Effects tab calculates economic effects that are attributed to a combination of soil health practices. Economic effects on this tab include changes in: (1) yield; (2) fertilizer use; (3) pesticide use; (4) soil erosion; and (5) other benefits or costs as identified by the grower. To avoid double counting, DO NOT enter any effect information that is already covered on the individual practice tabs. All effects are calculated on an annual basis per acre.
B10: Yield Impact Due to Soil Health Practices
B11: TIPS: (1) Benchmark average yield should reflect the average yield before adopting soil health practices. Make sure to account for the age of the almond tree when assessing yield records. Consider yield values only after full-bearing age. (2) User must enter their "Benchmark Average Yield" AND "% Yield Increase/Decrease" OR "Change in Average Yield". If user enters both of the latter, calculation will use % yield change value. (3) User must answer "Is this an organic farm? (Y/N)" on the "Orchard Info" tab. The table will use the standard crop price as default otherwise.
B18: Tree Nut Yield Impacts | C18: Amount
B20: Benchmark Average Yield (Lbs/Acre)
B21: AND
B22: % Yield Increase/Decrease due to Soil Health Practices (+/-)
B24: Calculated Change in Average Yield (Lbs/acre) | C24: =C20*C22 -> 0
B25: AND/OR
B26: Change in Average Yield due to Soil Health Practices (Lbs/Ac)
B28: Price per Pound 1 | C28: =IF(AND($C$19="Almond",'Orchard Info'!D53>0),'Orchard Info'!D53,IF(AND($C$19="Almond",'Orchard Info'!$C$17="Y"),Prices!C43,IF($C$19="Almond",Prices!$C$19,IF(AND($C$19="Pistachio",'Orchard Info'!D54>0),'Orchard Info'!D54,IF(AND($C$19="Pistachio",'Orchard Info'!$C$17="Y"),Prices!D43,IF($C$19="Pistachio",Prices!$D$19,IF(AND($C$19="Walnut",'Orchard Info'!D55>0),'Orchard Info'!D55,IF(AND($C$19="Walnut",'Orchard Info'!$C$17="Y"),Prices!E43,IF($C$19="Walnut",Prices!$E$19,"0"))))))))) -> 0
B30: Per Acre Change ($/Acre) | C30: =IF(C20>0,C24*C28,C26*C28) -> 0
B31: Acres | C31: ='Orchard Info'!C15 -> 0
B32: Total Change ($) | C32: =C30*C31 -> 0
B33: 1 Grower's price or national average non-organic price or organic price
B36: Change in Primary Nutrients Used Due to Soil Health Practices
B37: TIPS: (1) Enter negative values to indicate savings and positive values to indicate an increase in cost. (2) User must enter a price for micronutrients on Orchard Info tab if quantity of micronutrient cocktail has changed.
B40: Nutrients Used | C40: Amount
B41: Nitrogen (+/- Lbs/Ac)
B42: Change in Nitrogen Cost/Ac | C42: =IF('Orchard Info'!D48>0,'Orchard Info'!D48*'Combined Practice Effects'!C41,C41*Prices!C61) -> 0
B43: Phosphorus (+/- Lbs/Ac)
B44: Change in Phosphorus Cost/Ac | C44: =IF('Orchard Info'!D49>0,'Orchard Info'!D49*'Combined Practice Effects'!C43,C43*Prices!C62) -> 0
B45: Potassium (+/- Lbs/Ac)
B46: Change in Potassium Cost/Ac | C46: =IF('Orchard Info'!D50>0,'Orchard Info'!D50*'Combined Practice Effects'!C45,C45*Prices!C63) -> 0
B47: Change in Micronutrient Cocktail Lb/AC
B48: Change in Micronutrient Cocktail Cost/Ac | C48: =C47*'Orchard Info'!D51 -> 0
B49: Per Acre Change ($/Ac) | C49: =C42+C44+C46+C48 -> 0
B50: Acres | C50: ='Orchard Info'!$C$15 -> 0
B51: Total Change ($) | C51: =C49*C50 -> 0
B55: Change in Usage of Pesticides due to Soil Health Practices
B56: TIPS: (1) User must enter Cost/Ac and % Change for calculations to work. (2) Enter negative values for % change values to indicate savings and positive values to indicate an increase in cost.
B59: Pesticide Impacts | C59: Amount
B60: Herbicide Cost/Ac
B61: Herbicide % Change (+/-)
B62: Herbicide Change in Cost/Ac | C62: =C61*C60 -> 0
B63: Insecticide Cost/Ac
B64: Insecticide % Change (+/-)
B65: Insecticide Change in Cost/Ac | C65: =C64*C63 -> 0
B66: Fungicide Cost/Ac
B67: Fungicide % Change (+/-)
B68: Fungicide Change in Cost/Ac | C68: =C67*C66 -> 0
B69: Per Acre Change ($/Ac) | C69: =C68+C65+C62 -> 0
B70: Acres | C70: ='Orchard Info'!$C$15 -> 0
B71: Total Change ($) | C71: =C69*C70 -> 0
B74: Value of Decreased Erosion due to Soil Health Practices
B75: TIPS: (1) Number of Acres is the area where the reduction in erosion was observed. This could be where slopes are relatively uniform or, if the area is comprised of a combination of relatively flat areas and steeper ground, the acreage could be the portion encompassed by the steeper ground. (3) Options for Tons Reduced Erosion: a. Enter tons of reduced erosion results (Tons/Acre/Year) modeled using any sediment reduction tool, such as the Nutrient Tracking Tool; b. Enter the erosion reduction value from RUSLE-2 analysis if undertaken by your advisor; or c. Any value that seems reasonable based on soil including zero. (4) Total Annual Change in Repair Cost should only include changes in costs for repairs that occur within the Study Area. (5) Enter a negative value if cost of repairs has decreased and a positive value if cost of repairs increased.
B86: Productivity Benefits | C86: Amount
B87: Value of N and P per Ton of Soil | C87: =Prices!E73 -> 2.070616759
B88: Number of Acres1
B89: Tons Reduced Erosion (Tons/Acre/Year)
B90: Total Value ($/Year) | C90: =C89*C88*C87 -> 0
B91: AND/OR
B92: Mechanical Erosion Repair due to SH practices | C92: Amount
B93: Total Annual Change in Repair Cost ($/Year)
B95: Value of Decreased Erosion for Study Area ($/Ac) | C95: =IFERROR(((-1*C93)+C89)/'Orchard Info'!$C$15,0) -> 0
B96: 1 Do not exceed study area acreage.
B100: Other Benefits and Costs
B101: TIPS: (1) Description should detail the benefits, costs, or changes in activities experienced and responsible for change in Per Acre Value. (2) Per Acre Value should be positive for BOTH Positive Effects/Decreased Costs and Negative Effects/Increased Costs.
B104: Positive Effects/Decreased Costs
B105: Description of Other Benefit(s) | C105: $/Ac | D105: Acres | E105: Total Benefit
E106: =D106*C106 -> 0
E107: =D107*C107 -> 0
E108: =D108*C108 -> 0
B109: Negative Effects/Increased Costs
B110: Description of Other Cost(s) | C110: $/Ac | D110: Acres | E110: Total Cost
E111: =D111*C111 -> 0
E112: =D112*C112 -> 0
E113: 0

Sheet Partial Budget Analysis
B1: PARTIAL BUDGET ANALYSIS
B3: ABOUT THIS TAB:
B4: DO NOT EDIT THIS TAB: This tab and the table within should not be edited. Create your final PBA table in the subsequent tab called "Editable PBA" so if any mistakes are made you have this tab to reference and save results. The Partial Budget Analysis tab autopopulates and organizes the effects calculated on the preceeding tabs into four quadrants: (1) Increase in Income; (2) Decrease in Cost; (3) Decrease in Income; and (4) Increase in Cost Positive effects are displayed on the left and negative effects on the right. Effects are sorted automatically into the four quadrants based on their value. Columns A and K display the effect assigned to the adjacent cell using NRCS practice codes. NRCS practice codes are used where applicable instead of practice names as follows: 590 is Nutrient Management, 340 is Cover Crops, 484 is Mulching, and CA is Compost Application. The table can house every possible effect from the preceeding tabs. This means that most of the rows will not be populated. Totals are summarized at the bottom of the table for the entire Study Area. These totals are used to calculate the net change in income on a per acre basis and for the Study Area. The table also calculates the return on investment. All values are on an annual basis. A summary of financial assistance payments received appear at the bottom of the table; FA is not included in the analysis because cost-share is temporary and not received by all.
B21: WARNING: DO NOT attempt to edit the table on this tab as it contains complex formulas. The user risks losing the calculated effect information if the formulas are broken. The "Editable PBA" tab is identical to the Partial Budget Analysis tab and can be used for producing a version for publication.
B24: ="Economic Effects of Soil Health Practices on "&'Orchard Info'!$C$9& " (2023)" -> Economic Effects of Soil Health Practices on (2023)
B25: Increases in Net Income | G25: Decreases in Net Income
B26: Increase in Income | G26: Decrease in Income
B27: Item | C27: Per Acre | D27: Acres | E27: Total | G27: Item | H27: Per Acre | I27: Acres | J27: Total
A28: 590 Yield | B28: =IF('Nutrient Mgt'!C68>0,'Nutrient Mgt'!B46,"NA") -> NA | C28: =IF('Nutrient Mgt'!C68>0,'Nutrient Mgt'!C68,0) -> 0 | D28: =IF('Nutrient Mgt'!C68>0,'Nutrient Mgt'!C69,0) -> 0 | E28: =D28*C28 -> 0 | G28: =IF('Nutrient Mgt'!C68<0,'Nutrient Mgt'!B46,"NA") -> NA | H28: =IFERROR(IF('Nutrient Mgt'!C68<0,'Nutrient Mgt'!C68*-1,0),0) -> 0 | I28: =IF('Nutrient Mgt'!C68<0,'Nutrient Mgt'!C69,0) -> 0 | J28: =I28*H28 -> 0 | K28: 590 Yield
A29: 340 Yield | B29: =IF('Cover Crop'!C64>0,'Cover Crop'!B43,"NA") -> NA | C29: =IF('Cover Crop'!C64>0,'Cover Crop'!C64,0) -> 0 | D29: =IF('Cover Crop'!C64>0,'Cover Crop'!C65,0) -> 0 | E29: =D29*C29 -> 0 | G29: =IF('Cover Crop'!C64<0,'Cover Crop'!B43,"NA") -> NA | H29: =IF('Cover Crop'!C64<0,'Cover Crop'!C64*-1,0) -> 0 | I29: =IF('Cover Crop'!C64<0,'Cover Crop'!C65,0) -> 0 | J29: =I29*H29 -> 0 | K29: 340 Yield
A30: 484 Yield | B30: =IFERROR(IF(Mulching!C55>0,Mulching!B34,"NA"),0) -> NA | C30: =IF(Mulching!C55>0,Mulching!C55,0) -> 0 | D30: =IFERROR(IF(Mulching!C55>0,Mulching!C56,0),0) -> 0 | E30: =D30*C30 -> 0 | G30: =IFERROR(IF(Mulching!C55<0,Mulching!B34,"NA"),0) -> NA | H30: =IFERROR(IF(Mulching!C55<0,Mulching!C55*-1,0),0) -> 0 | I30: =IFERROR(IF(Mulching!C55<0,Mulching!C56,0),0) -> 0 | J30: =I30*H30 -> 0 | K30: 484 Yield
A31: CA Yield | B31: =IFERROR(IF('Compost Application'!C52>0,'Compost Application'!B31,"NA"),0) -> NA | C31: =IFERROR(IF('Compost Application'!C52>0,'Compost Application'!C52,0),0) -> 0 | D31: =IF('Compost Application'!C52>0,'Compost Application'!C53,0) -> 0 | E31: =D31*C31 -> 0 | G31: =IF('Compost Application'!C52<0,'Compost Application'!B31,"NA") -> NA | H31: =IF('Compost Application'!C52<0,'Compost Application'!C52*-1,0) -> 0 | I31: =IF('Compost Application'!C52<0,'Compost Application'!C53,0) -> 0 | J31: =I31*H31 -> 0 | K31: CA Yield
A32: All Practices | B32: =IF('Combined Practice Effects'!C30>0,'Combined Practice Effects'!B10,"NA") -> NA | C32: =IF('Combined Practice Effects'!C30>0,'Combined Practice Effects'!C30,0) -> 0 | D32: =IF('Combined Practice Effects'!C30>0,'Combined Practice Effects'!C31,0) -> 0 | E32: =D32*C32 -> 0 | G32: =IF('Combined Practice Effects'!C30<0,'Combined Practice Effects'!B10,"NA") -> NA | H32: =IF('Combined Practice Effects'!C30<0,'Combined Practice Effects'!C30*-1,0) -> 0 | I32: =IF('Combined Practice Effects'!C30<0,'Combined Practice Effects'!C31,0) -> 0 | J32: =I32*H32 -> 0 | K32: All practices
B33: Total Increased Income | E33: =SUM(E28:E32) -> 0 | G33: Total Decreased Income | J33: =SUM(J28:J32) -> 0
B34: Decrease in Cost | G34: Increase in Cost
B35: Item | C35: Per Acre | D35: Acres | E35: Total | G35: Item | H35: Per Acre | I35: Acres | J35: Total
A36: 590 Field Operations | B36: =IF('Nutrient Mgt'!C42<0,'Nutrient Mgt'!B38,"NA") -> NA | C36: =IF('Nutrient Mgt'!C42<0,'Nutrient Mgt'!C42*-1,0) -> 0 | D36: =IF('Nutrient Mgt'!C42<0,'Nutrient Mgt'!C24,0) -> 0 | E36: =D36*C36 -> 0 | G36: =IF('Nutrient Mgt'!C42>0,'Nutrient Mgt'!B38,"NA") -> NA | H36: =IF('Nutrient Mgt'!C42>0,'Nutrient Mgt'!C42,0) -> 0 | I36: =IF('Nutrient Mgt'!C42>0,'Nutrient Mgt'!C24,0) -> 0 | J36: =I36*H36 -> 0 | K36: 590 Field Operations
A37: 590 Nutrients | B37: =IF('Nutrient Mgt'!C92<0,'Nutrient Mgt'!B74,"NA") -> NA | C37: =IF('Nutrient Mgt'!C92<0,'Nutrient Mgt'!C92*-1,0) -> 0 | D37: =IF('Nutrient Mgt'!C92<0,'Nutrient Mgt'!C93,0) -> 0 | E37: 0 | G37: =IF('Nutrient Mgt'!C92>0,'Nutrient Mgt'!B74,"NA") -> NA | H37: =IF('Nutrient Mgt'!C92>0,'Nutrient Mgt'!C92,0) -> 0 | I37: =IF('Nutrient Mgt'!C92>0,'Nutrient Mgt'!C93,0) -> 0 | J37: 0 | K37: 590 Nutrients
A38: 590 N Form | B38: =IF('Nutrient Mgt'!F107<0,'Nutrient Mgt'!B98,"NA") -> NA | C38: =IF('Nutrient Mgt'!F107<0,'Nutrient Mgt'!F107*-1,0) -> 0 | D38: =IF('Nutrient Mgt'!F107<0, 'Nutrient Mgt'!C24,0) -> 0 | E38: =C38*D38 -> 0 | G38: =IF('Nutrient Mgt'!F107>0,'Nutrient Mgt'!B98,"NA") -> NA | H38: =IF('Nutrient Mgt'!F107>0,'Nutrient Mgt'!F107,0) -> 0 | I38: =IF('Nutrient Mgt'!F107>0,'Nutrient Mgt'!C24,0) -> 0 | J38: =H38*I38 -> 0 | K38: 590 N Form
A39: 590 K Form | B39: =IF('Nutrient Mgt'!F119<0, 'Nutrient Mgt'!B110,"NA") -> NA | C39: =IF('Nutrient Mgt'!F119<0,'Nutrient Mgt'!F119*-1,0) -> 0 | D39: =IF('Nutrient Mgt'!F119<0,'Nutrient Mgt'!C24,0) -> 0 | E39: =C39*D39 -> 0 | G39: =IF('Nutrient Mgt'!F119>0,'Nutrient Mgt'!B110,"NA") -> NA | H39: =IF('Nutrient Mgt'!F119>0,'Nutrient Mgt'!F119,0) -> 0 | I39: =IF('Nutrient Mgt'!F119>0,'Nutrient Mgt'!C24,0) -> 0 | J39: =H39*I39 -> 0 | K39: 590 P Form
A40: 590 Pesticides | B40: =IF('Nutrient Mgt'!C138<0,'Nutrient Mgt'!B122,"NA") -> NA | C40: =IF('Nutrient Mgt'!C138<0,'Nutrient Mgt'!C138*-1,0) -> 0 | D40: =IF('Nutrient Mgt'!C138<0,'Nutrient Mgt'!C139,0) -> 0 | E40: 0 | G40: =IF('Nutrient Mgt'!C138>0,'Nutrient Mgt'!B122,"NA") -> NA | H40: =IF('Nutrient Mgt'!C138>0,'Nutrient Mgt'!C138,0) -> 0 | I40: =IF('Nutrient Mgt'!C138>0,'Nutrient Mgt'!C139,0) -> 0 | J40: 0 | K40: 590 Pesticides
A41: 340 Nutrients | B41: =IF('Cover Crop'!C86<0,'Cover Crop'!B71,"NA") -> NA | C41: =IF('Cover Crop'!C86<0,'Cover Crop'!C86*-1,0) -> 0 | D41: =IF('Cover Crop'!C86<0,'Cover Crop'!C87,0) -> 0 | E41: 0 | G41: =IF('Orchard Info'!C34>0,'Orchard Info'!B34,"NA") -> NA | J41: =IF('Orchard Info'!C34>0,'Orchard Info'!D34,0) -> 0 | K41: 590 Education
A42: 340 Pesticides | B42: =IF('Cover Crop'!C110<0,'Cover Crop'!B92,"NA") -> NA | C42: =IF('Cover Crop'!C110<0,'Cover Crop'!C110*-1,0) -> 0 | D42: =IF('Cover Crop'!C110<0,'Cover Crop'!C111,0) -> 0 | E42: 0 | G42: =IF('Cover Crop'!E40>0,'Cover Crop'!B12,"NA") -> NA | H42: =IF('Cover Crop'!E40>0,'Cover Crop'!E40,0) -> 0 | I42: =IF('Cover Crop'!E40>0,SUM('Cover Crop'!C29:E29),0) -> 0 | J42: =I42*H42 -> 0 | K42: 340 Costs
A43: 340 Erosion | B43: =IF('Cover Crop'!C138>0,'Cover Crop'!B115,"NA") -> NA | C43: =IF('Cover Crop'!C138>0,'Cover Crop'!C138,0) -> 0 | D43: =IF('Cover Crop'!C$138>0,'Orchard Info'!C15,0) -> 0 | E43: 0 | G43: =IF('Cover Crop'!C86>0,'Cover Crop'!B71,"NA") -> NA | H43: =IF('Cover Crop'!C86>0,'Cover Crop'!C86,0) -> 0 | I43: =IF('Cover Crop'!C86>0,'Cover Crop'!C87,0) -> 0 | J43: 0 | K43: 340 Nutrients
A44: 484 Costs | B44: =IF(Mulching!C29<0,Mulching!B8,"NA") -> NA | C44: =IF(Mulching!C29<0,Mulching!C29*-1,0) -> 0 | D44: =IF(Mulching!C29<0,Mulching!C30,0) -> 0 | E44: 0 | G44: =IF('Cover Crop'!C110>0,'Cover Crop'!B92,"NA") -> NA | H44: =IF('Cover Crop'!C110>0,'Cover Crop'!C110,0) -> 0 | I44: =IF('Cover Crop'!C110>0,'Cover Crop'!C111,0) -> 0 | J44: 0 | K44: 340 Pesticides
A45: 484 Nutrients | B45: =IF(Mulching!C77<0,Mulching!B62,"NA") -> NA | C45: =IF(Mulching!C77<0,Mulching!C77*-1,0) -> 0 | D45: =IF(Mulching!C77<0,Mulching!C78,0) -> 0 | E45: 0 | G45: =IF('Orchard Info'!C35>0,'Orchard Info'!B35,"NA") -> NA | J45: =IF('Orchard Info'!C35>0, 'Orchard Info'!D35,0) -> 0 | K45: 340 Education
A46: 484 Pesticides | B46: =IF(Mulching!C99<0,Mulching!B83,"NA") -> NA | C46: =IF(Mulching!C99<0,Mulching!C99*-1,0) -> 0 | D46: =IF(Mulching!C99<0,Mulching!C100,0) -> 0 | E46: 0 | G46: =IF(Mulching!C29>0,Mulching!B8,"NA") -> NA | H46: =IF(Mulching!C29>0,Mulching!C29,0) -> 0 | I46: =IF(Mulching!C29>0,Mulching!C30,0) -> 0 | J46: 0 | K46: 484 Cost
A47: 484 Erosion | B47: =IF(Mulching!C127>0,Mulching!B104,"NA") -> NA | C47: =IF(Mulching!C127>0,Mulching!C127,0) -> 0 | D47: =IF(Mulching!C127>0,'Orchard Info'!C15,0) -> 0 | E47: 0 | G47: =IF(Mulching!C77>0,Mulching!B62,"NA") -> NA | H47: =IF(Mulching!C77>0,Mulching!C77,0) -> 0 | I47: =IF(Mulching!C77>0,Mulching!C78,0) -> 0 | J47: 0 | K47: 484 Nutrients
A48: CA Nutrients | B48: =IF('Compost Application'!C74<0,'Compost Application'!B59,"NA") -> NA | C48: =IF('Compost Application'!C74<0,'Compost Application'!C74*-1,0) -> 0 | D48: =IF('Compost Application'!C74<0,'Compost Application'!C75,0) -> 0 | E48: =D48*C48 -> 0 | G48: =IF(Mulching!C99>0,Mulching!B83,"NA") -> NA | H48: =IF(Mulching!C99>0,Mulching!C99,0) -> 0 | I48: =IF(Mulching!C99>0,Mulching!C100,0) -> 0 | J48: 0 | K48: 484 Pesticides
A49: CA Pesticides | B49: =IF('Compost Application'!C96<0,'Compost Application'!B80,"NA") -> NA | C49: =IF('Compost Application'!C96<0,'Compost Application'!C96*-1,0) -> 0 | D49: =IF('Compost Application'!C96<0,'Compost Application'!C97,0) -> 0 | E49: 0 | G49: =IF('Orchard Info'!C36>0,'Orchard Info'!B36,"NA") -> NA | J49: =IF('Orchard Info'!C36>0,'Orchard Info'!D36,0) -> 0 | K49: 484 Education
A50: CA Erosion | B50: =IF('Compost Application'!C124>0,'Compost Application'!B101,"NA") -> NA | C50: =IF('Compost Application'!C124>0,'Compost Application'!C124,0) -> 0 | D50: =IF('Compost Application'!C124>0,'Orchard Info'!C15,0) -> 0 | E50: 0 | G50: =IF('Compost Application'!G26>0,'Compost Application'!B8,"NA") -> NA | H50: =IF('Compost Application'!G26>0,'Compost Application'!G26,0) -> 0 | I50: =IF('Compost Application'!G26>0,'Compost Application'!G27,0) -> 0 | J50: 0 | K50: CA Cost
A51: 590PosEff1 | B51: =IF('Nutrient Mgt'!C159>0,'Nutrient Mgt'!B159,"NA") -> NA | C51: =IF('Nutrient Mgt'!C159>0,'Nutrient Mgt'!C159,0) -> 0 | D51: =IF('Nutrient Mgt'!C159>0,'Nutrient Mgt'!D159,0) -> 0 | E51: 0 | G51: =IF('Compost Application'!C74>0,'Compost Application'!B59,"NA") -> NA | H51: =IF('Compost Application'!C74>0,'Compost Application'!C74,0) -> 0 | I51: =IF('Compost Application'!C74>0,'Compost Application'!C75,0) -> 0 | J51: =I51*H51 -> 0 | K51: CA Nutrients
A52: 590PosEff2 | B52: =IF('Nutrient Mgt'!C160>0,'Nutrient Mgt'!B160,"NA") -> NA | C52: =IF('Nutrient Mgt'!C160>0,'Nutrient Mgt'!C160,0) -> 0 | D52: =IF('Nutrient Mgt'!C160>0,'Nutrient Mgt'!D160,0) -> 0 | E52: 0 | G52: =IF('Compost Application'!C96>0,'Compost Application'!B80,"NA") -> NA | H52: =IF('Compost Application'!C96>0,'Compost Application'!C96,0) -> 0 | I52: =IF('Compost Application'!C96>0,'Compost Application'!C97,0) -> 0 | J52: 0 | K52: CA Pesticides
A53: 590PosEff3 | B53: =IF('Nutrient Mgt'!C161>0,'Nutrient Mgt'!B161,"NA") -> NA | C53: =IF('Nutrient Mgt'!C161>0,'Nutrient Mgt'!C161,0) -> 0 | D53: =IF('Nutrient Mgt'!C161>0,'Nutrient Mgt'!D161,0) -> 0 | E53: 0 | G53: =IF('Orchard Info'!C37>0,'Orchard Info'!B37,"NA") -> NA | J53: =IF('Orchard Info'!C37>0,'Orchard Info'!D37,0) -> 0 | K53: CA Education
A54: 340PosEff1 | B54: =IF('Cover Crop'!C159>0,'Cover Crop'!B159,"NA") -> NA | C54: =IF('Cover Crop'!C159>0,'Cover Crop'!C159,0) -> 0 | D54: =IF('Cover Crop'!C159>0,'Cover Crop'!D159,0) -> 0 | E54: 0 | G54: =IF('Nutrient Mgt'!C164>0,'Nutrient Mgt'!B164,"NA") -> NA | H54: =IF('Nutrient Mgt'!C164>0,'Nutrient Mgt'!C164,0) -> 0 | I54: =IF('Nutrient Mgt'!C164>0,'Nutrient Mgt'!D164,0) -> 0 | J54: =I54*H54 -> 0 | K54: 590NegEff1
A55: 340PosEff2 | B55: =IF('Cover Crop'!C160>0,'Cover Crop'!B160,"NA") -> NA | C55: =IF('Cover Crop'!C160>0,'Cover Crop'!C160,0) -> 0 | D55: =IF('Cover Crop'!C160>0,'Cover Crop'!D160,0) -> 0 | E55: 0 | G55: =IF('Nutrient Mgt'!C165>0,'Nutrient Mgt'!B165,"NA") -> NA | H55: =IF('Nutrient Mgt'!C165>0,'Nutrient Mgt'!C165,0) -> 0 | I55: =IF('Nutrient Mgt'!C165>0,'Nutrient Mgt'!D165,0) -> 0 | J55: 0 | K55: 590NegEff2
A56: 340PosEff3 | B56: =IF('Cover Crop'!C161>0,'Cover Crop'!B161,"NA") -> NA | C56: =IF('Cover Crop'!C161>0,'Cover Crop'!C161,0) -> 0 | D56: =IF('Cover Crop'!C161>0,'Cover Crop'!D161,0) -> 0 | E56: 0 | G56: =IF('Nutrient Mgt'!C166>0,'Nutrient Mgt'!B166,"NA") -> NA | H56: =IF('Nutrient Mgt'!C166>0,'Nutrient Mgt'!C166,0) -> 0 | I56: =IF('Nutrient Mgt'!C166>0,'Nutrient Mgt'!D166,0) -> 0 | J56: 0 | K56: 590NegEff3
A57: 484PosEff1 | B57: =IF(Mulching!C148>0,Mulching!B148,"NA") -> NA | C57: =IF(Mulching!C148>0,Mulching!C148,0) -> 0 | D57: =IF(Mulching!C148>0,Mulching!D148,0) -> 0 | E57: 0 | G57: =IF('Cover Crop'!C164>0,'Cover Crop'!B164,"NA") -> NA | H57: =IF('Cover Crop'!C164>0,'Cover Crop'!C164,0) -> 0 | I57: =IF('Cover Crop'!C164>0,'Cover Crop'!D164,0) -> 0 | J57: 0 | K57: 340NegEff1
A58: 484PosEff2 | B58: =IF(Mulching!C149>0,Mulching!B149,"NA") -> NA | C58: =IF(Mulching!C149>0,Mulching!C149,0) -> 0 | D58: =IF(Mulching!C149>0,Mulching!D149,0) -> 0 | E58: 0 | G58: =IF('Cover Crop'!C165>0,'Cover Crop'!B165,"NA") -> NA | H58: =IF('Cover Crop'!C165>0,'Cover Crop'!C165,0) -> 0 | I58: =IF('Cover Crop'!C165>0,'Cover Crop'!D165,0) -> 0 | J58: 0 | K58: 340NegEff2
A59: 484PosEff3 | B59: =IF(Mulching!C150>0,Mulching!B150,"NA") -> NA | C59: =IF(Mulching!C150>0,Mulching!C150,0) -> 0 | D59: =IF(Mulching!C150>0,Mulching!D150,0) -> 0 | E59: 0 | G59: =IF('Cover Crop'!C166>0,'Cover Crop'!B166,"NA") -> NA | H59: =IF('Cover Crop'!C166>0,'Cover Crop'!C166,0) -> 0 | I59: =IF('Cover Crop'!C166>0,'Cover Crop'!D166,0) -> 0 | J59: 0 | K59: 340NegEff3
A60: CA PosEff 1 | B60: =IF('Compost Application'!C142>0,'Compost Application'!B142,"NA") -> NA | C60: =IF('Compost Application'!C142>0,'Compost Application'!C142,0) -> 0 | D60: =IF('Compost Application'!C142>0,'Compost Application'!D142,0) -> 0 | E60: 0 | G60: =IF(Mulching!C153>0,Mulching!B153,"NA") -> NA | H60: =IF(Mulching!C153>0,Mulching!C153,0) -> 0 | I60: =IF(Mulching!C153>0,Mulching!D153,0) -> 0 | J60: 0 | K60: 484NegEff1
A61: CA PosEff2 | B61: =IF('Compost Application'!C143>0,'Compost Application'!B143,"NA") -> NA | C61: =IF('Compost Application'!C143>0,'Compost Application'!C143,0) -> 0 | D61: =IF('Compost Application'!C143>0,'Compost Application'!D143,0) -> 0 | E61: 0 | G61: =IF(Mulching!C154>0,Mulching!B154,"NA") -> NA | H61: =IF(Mulching!C154>0,Mulching!C154,0) -> 0 | I61: =IF(Mulching!C154>0,Mulching!D154,0) -> 0 | J61: 0 | K61: 484NegEff2
A62: CA PosEff3 | B62: =IF('Compost Application'!C144>0,'Compost Application'!B144,"NA") -> NA | C62: =IF('Compost Application'!C144>0,'Compost Application'!C144,0) -> 0 | D62: =IF('Compost Application'!C144>0,'Compost Application'!D144,0) -> 0 | E62: 0 | G62: =IF(Mulching!C155>0,Mulching!B155,"NA") -> NA | H62: =IF(Mulching!C155>0,Mulching!C155,0) -> 0 | I62: =IF(Mulching!C155>0,Mulching!D155,0) -> 0 | J62: 0 | K62: 484NegEff3
A63: All Practices NPK | B63: =IF('Combined Practice Effects'!C49<0,'Combined Practice Effects'!B36,"NA") -> NA | C63: =IF('Combined Practice Effects'!C49<0,'Combined Practice Effects'!C49*-1,0) -> 0 | D63: =IF('Combined Practice Effects'!C49<0,'Combined Practice Effects'!C50,0) -> 0 | E63: 0 | G63: =IF('Compost Application'!C147>0,'Compost Application'!B147,"NA") -> NA | H63: =IF('Compost Application'!C147>0,'Compost Application'!C147,0) -> 0 | I63: =IF('Compost Application'!C147>0,'Compost Application'!D147,0) -> 0 | J63: 0 | K63: CA NegEff1
A64: All Practices Pesticides | B64: =IF('Combined Practice Effects'!C69<0,'Combined Practice Effects'!B55,"NA") -> NA | C64: =IF('Combined Practice Effects'!C69<0,'Combined Practice Effects'!C69*-1,0) -> 0 | D64: =IF('Combined Practice Effects'!C69<0,'Combined Practice Effects'!C70,0) -> 0 | E64: 0 | G64: =IF('Compost Application'!C148>0,'Compost Application'!B148,"NA") -> NA | H64: =IF('Compost Application'!C148>0,'Compost Application'!C148,0) -> 0 | I64: =IF('Compost Application'!C148>0,'Compost Application'!D148,0) -> 0 | J64: 0 | K64: CA NegEff2
A65: All Practices Erosion | B65: =IF('Combined Practice Effects'!C95>0,'Combined Practice Effects'!B74,"NA") -> NA | C65: =IF('Combined Practice Effects'!C95>0,'Combined Practice Effects'!C95,0) -> 0 | D65: =IF('Combined Practice Effects'!C95>0,'Orchard Info'!C15,0) -> 0 | E65: 0 | G65: =IF('Compost Application'!C149>0,'Compost Application'!B149,"NA") -> NA | H65: =IF('Compost Application'!C149>0,'Compost Application'!C149,0) -> 0 | I65: =IF('Compost Application'!C149>0,'Compost Application'!D149,0) -> 0 | J65: 0 | K65: CA NegEff3
A66: All PracticesPosEff1 | B66: =IF('Combined Practice Effects'!C106>0,'Combined Practice Effects'!B106,"NA") -> NA | C66: =IF('Combined Practice Effects'!C106>0,'Combined Practice Effects'!C106,0) -> 0 | D66: =IF('Combined Practice Effects'!C106>0,'Combined Practice Effects'!D106,0) -> 0 | E66: 0 | G66: =IF('Combined Practice Effects'!C49>0,'Combined Practice Effects'!B36,"NA") -> NA | H66: =IF('Combined Practice Effects'!C49>0,'Combined Practice Effects'!C49,0) -> 0 | I66: =IF('Combined Practice Effects'!C49>0,'Combined Practice Effects'!C50,0) -> 0 | J66: 0 | K66: All Practices NPK
A67: All PracticesPosEff2 | B67: =IF('Combined Practice Effects'!C107>0,'Combined Practice Effects'!B107,"NA") -> NA | C67: =IF('Combined Practice Effects'!C107>0,'Combined Practice Effects'!C107,0) -> 0 | D67: =IF('Combined Practice Effects'!C107>0,'Combined Practice Effects'!D107,0) -> 0 | E67: 0 | G67: =IF('Combined Practice Effects'!C69>0,'Combined Practice Effects'!B55,"NA") -> NA | H67: =IF('Combined Practice Effects'!C69>0,'Combined Practice Effects'!C69,0) -> 0 | I67: =IF('Combined Practice Effects'!C69>0,'Combined Practice Effects'!C70,0) -> 0 | J67: 0 | K67: All Practices Pesticides
A68: All PracticesPosEff3 | B68: =IF('Combined Practice Effects'!C108>0,'Combined Practice Effects'!B108,"NA") -> NA | C68: =IF('Combined Practice Effects'!C108>0,'Combined Practice Effects'!C108,0) -> 0 | D68: =IF('Combined Practice Effects'!C108>0,'Combined Practice Effects'!D108,0) -> 0 | E68: 0 | G68: =IF('Orchard Info'!C39>0,'Orchard Info'!B39,"NA") -> NA | J68: =IF('Orchard Info'!C39>0,'Orchard Info'!D39,0) -> 0 | K68: All Practices Education
G69: =IF('Combined Practice Effects'!C111>0,'Combined Practice Effects'!B111,"NA") -> NA | H69: =IF('Combined Practice Effects'!C111>0,'Combined Practice Effects'!C111,0) -> 0 | I69: =IF('Combined Practice Effects'!C111>0,'Combined Practice Effects'!D111,0) -> 0 | J69: =I69*H69 -> 0 | K69: All PracticesNegEff1
G70: =IF('Combined Practice Effects'!C112>0,'Combined Practice Effects'!B112,"NA") -> NA | H70: =IF('Combined Practice Effects'!C112>0,'Combined Practice Effects'!C112,0) -> 0 | I70: =IF('Combined Practice Effects'!C112>0,'Combined Practice Effects'!D112,0) -> 0 | J70: =I70*H70 -> 0 | K70: All PracticesNegEff2
G71: =IF('Combined Practice Effects'!C113>0,'Combined Practice Effects'!B113,"NA") -> NA | H71: =IF('Combined Practice Effects'!C113>0,'Combined Practice Effects'!C113,0) -> 0 | I71: =IF('Combined Practice Effects'!C113>0,'Combined Practice Effects'!D113,0) -> 0 | J71: =I71*H71 -> 0 | K71: All PracticesNegEff3
B72: Total Decreased Cost | E72: =IFERROR(SUM(E36:E68),0) -> 0 | G72: Total Increased Cost | J72: =IFERROR(SUM(J36:J71),0) -> 0
B74: Annual Total Increased Net Income | E74: =IFERROR(E72+E33,0) -> 0 | G74: Annual Total Decreased Net Income | J74: =IFERROR(J72+J33,0) -> 0
B75: Total Acres in this Study Area | E75: ='Orchard Info'!C15 -> 0 | G75: Total Acres in this Study Area | J75: ='Orchard Info'!C15 -> 0
B76: Annual Per Acre Increased Net Income | E76: =IFERROR(ROUND(E74/E75,0),0) -> 0 | G76: Annual Per Acre Decreased Net Income | J76: =IFERROR(ROUND(J74/J75,0),0) -> 0
B78: Annual Change in Total Net Income | F78: = | G78: =IFERROR(E74-J74,0) -> 0
B79: Annual Change in Per Acre Net Income | F79: = | G79: =IFERROR(G78/E75,0) -> 0
B80: Return on Investment | F80: = | G80: =IFERROR(G78/J74,0) -> 0
B81: Footnotes: | K81: Notes to authors about editing footnotes:
B82: This table represents estimated average costs and benefits attributed to adopting [list SH practices] over the entire study area (### acres), where [list crops] are grown, as reported by the grower. | K82: Update with featured grower's information.
B84: All values are in 2023 dollars.
B85: Prices are stated as per acre values for items that vary by area. Prices such as learning costs, which don't vary by area, are only given as total costs. | K85: If applicable
B86: Prices used (5-yr rolling averages): Almond: $2.11/lb, Pistachios: $2.76/lb, Walnuts: $0.71/lb (USDA NASS, 2019-2023, Survey - Commodity Price Received: Price Received Measured in $/lb (California only), QuickStats, Retrieved May 10, 2024); Nitrogen: $0.63/lb, Phosphate: $0.61/lb, Potash: $0.54/lb (Iowa State University Extension and Outreach, Ag Decision Maker: Estimated Costs of Crop Production in Iowa (File A1-20), 2019-2023 average, Retrieved on February 6, 2024.); 2023 hourly labor rate: $29.23/hr (U.S. Bureau of Labor Statistics, 2023, Occupational Employment & Wage Statistics, First-Line Supervisors of Farming). | K86: Only include applicable crop price if there was a change in yield. Only include applicable fertilizer prices if there was a change in fertilizer use.
B90: Value of decreased erosion ($2.07/ton) is based on estimated N & P content of the soil (2.32 lbs N/ton, 1 lb P/ton) and fertilizer prices (USDA NRCS, May 2010, Benefit-Cost Analysis for the EQIP) and [insert farmer name] estimate of reduced mechanical erosion repair costs. | K90: Only include if there was a change in erosion rate, then edit appropriately depending on if grower provided an annual savings in mechanical erosion repair cost.
B92: Return on Investment is the ratio of Annual Total Change in Net Income to Annual Total Decreased Net Income, as a percent.
B93: This material is based on work by American Farmland Trust supported by USDA NRCS CIG grant NR183A750008G008. | K93: Option to add applicable funding information
B94: For information about study methodology, see farmland.org/soilhealthcasestudies.
B95: [insert grower's first name] received [insert amount, e.g., $/ac/yr or $/yr] through the [insert name of program (years active)]. This is not included in the analysis because cost-share is temporary and not received by all. | K95: Only include if grower received financial assistance. Complete missing information based on grower's unique circumstances.
B98: Impact of Financial Assistance Payments
B99: Increase in Income
B100: Soil Health Practice | C100: Per Acre | D100: Acres | E100: Total
B101: Nutrient Management | C101: =IFERROR('Nutrient Mgt'!F149,0) -> 0 | D101: ='Orchard Info'!C$15 -> 0 | E101: =D101*C101 -> 0
B102: Cover Crop | C102: =IFERROR('Cover Crop'!F148,0) -> 0 | D102: ='Orchard Info'!C$15 -> 0 | E102: =D102*C102 -> 0
B103: Mulching | C103: =IFERROR(Mulching!F138,0) -> 0 | D103: ='Orchard Info'!C$15 -> 0 | E103: 0
B104: Compost Application | C104: =IFERROR('Compost Application'!F135,0) -> 0 | D104: ='Orchard Info'!C$15 -> 0 | E104: 0
B105: Total Increase due to Financial Assistance | E105: =SUM(E101:E104) -> 0
B106: Annual Change in Total Net Income = | E106: =IFERROR(G78+E105,0) -> 0
B107: Annual Change in Per Acre Net Income = | E107: =IFERROR(E106/'Orchard Info'!C15,0) -> 0

Sheet Editable PBA
A1: EDITABLE PARTIAL BUDGET ANALYSIS TABLE
A3: ABOUT THIS TAB:
A4: The 'Editable PBA' tab is a copy of the results (identical to the 'Partial Budget Analysis' tab) to be edited as the user sees fit. TO EDIT: First remove the formulas by copy and pasting the table to only include values (not formulas) so the results will not change. You can always reference the protected 'Partial Budget Analysis' tab. Once you have only values, remove all unused items on the left and right by deleting rows and shifting cells. We encourage users to make the item descriptions more detailed. Reminder: Positive effects are displayed on the left and negative effects on the right. Effects are sorted automatically into the four quadrants based on their value. The table can house every possible effect from the preceeding tabs. This means that most of the rows will not be populated. Totals are summarized at the bottom of the table for the entire Study Area. All values are on an annual basis. Suggested footnotes appear at the bottom of the table followed by a summary of financial assistance payments received, if any. FA is not included in the PBA results because cost-share is temporary and not received by all.
A14: ="Economic Effects of Soil Health Practices on "&'Orchard Info'!$C$9& " (2023)" -> Economic Effects of Soil Health Practices on (2023)
A15: Increases in Net Income | F15: Decreases in Net Income
A16: Increase in Income | F16: Decrease in Income
A17: Item | B17: Per Acre | C17: Acres | D17: Total | F17: Item | G17: Per Acre | H17: Acres | I17: Total
A18: =IF('Nutrient Mgt'!C68>0,'Nutrient Mgt'!B46,"NA") -> NA | B18: =IF('Nutrient Mgt'!C68>0,'Nutrient Mgt'!C68,0) -> 0 | C18: =IF('Nutrient Mgt'!C68>0,'Nutrient Mgt'!C69,0) -> 0 | D18: =C18*B18 -> 0 | F18: =IF('Nutrient Mgt'!C68<0,'Nutrient Mgt'!B46,"NA") -> NA | G18: =IFERROR(IF('Nutrient Mgt'!C68<0,'Nutrient Mgt'!C68*-1,0),0) -> 0 | H18: =IF('Nutrient Mgt'!C68<0,'Nutrient Mgt'!C69,0) -> 0 | I18: =H18*G18 -> 0
A19: =IF('Cover Crop'!C64>0,'Cover Crop'!B43,"NA") -> NA | B19: =IF('Cover Crop'!C64>0,'Cover Crop'!C64,0) -> 0 | C19: =IF('Cover Crop'!C64>0,'Cover Crop'!C65,0) -> 0 | D19: =C19*B19 -> 0 | F19: =IF('Cover Crop'!C64<0,'Cover Crop'!B43,"NA") -> NA | G19: =IF('Cover Crop'!C64<0,'Cover Crop'!C64*-1,0) -> 0 | H19: =IF('Cover Crop'!C64<0,'Cover Crop'!C65,0) -> 0 | I19: =H19*G19 -> 0
A20: =IFERROR(IF(Mulching!C55>0,Mulching!B34,"NA"),0) -> NA | B20: =IF(Mulching!C55>0,Mulching!C55,0) -> 0 | C20: =IFERROR(IF(Mulching!C55>0,Mulching!C56,0),0) -> 0 | D20: =C20*B20 -> 0 | F20: =IFERROR(IF(Mulching!C55<0,Mulching!B34,"NA"),0) -> NA | G20: =IFERROR(IF(Mulching!C55<0,Mulching!C55*-1,0),0) -> 0 | H20: =IFERROR(IF(Mulching!C55<0,Mulching!C56,0),0) -> 0 | I20: =H20*G20 -> 0
A21: =IFERROR(IF('Compost Application'!C52>0,'Compost Application'!B31,"NA"),0) -> NA | B21: =IFERROR(IF('Compost Application'!C52>0,'Compost Application'!C52,0),0) -> 0 | C21: =IF('Compost Application'!C52>0,'Compost Application'!C53,0) -> 0 | D21: =C21*B21 -> 0 | F21: =IF('Compost Application'!C52<0,'Compost Application'!B31,"NA") -> NA | G21: =IF('Compost Application'!C52<0,'Compost Application'!C52*-1,0) -> 0 | H21: =IF('Compost Application'!C52<0,'Compost Application'!C53,0) -> 0 | I21: =H21*G21 -> 0
A22: =IF('Combined Practice Effects'!C30>0,'Combined Practice Effects'!B10,"NA") -> NA | B22: =IF('Combined Practice Effects'!C30>0,'Combined Practice Effects'!C30,0) -> 0 | C22: =IF('Combined Practice Effects'!C30>0,'Combined Practice Effects'!C31,0) -> 0 | D22: =C22*B22 -> 0 | F22: =IF('Combined Practice Effects'!C30<0,'Combined Practice Effects'!B10,"NA") -> NA | G22: =IF('Combined Practice Effects'!C30<0,'Combined Practice Effects'!C30*-1,0) -> 0 | H22: =IF('Combined Practice Effects'!C30<0,'Combined Practice Effects'!C31,0) -> 0 | I22: =H22*G22 -> 0
A23: Total Increased Income | D23: =SUM(D18:D22) -> 0 | F23: Total Decreased Income | I23: =SUM(I18:I22) -> 0
A24: Decrease in Cost | F24: Increase in Cost
A25: Item | B25: Per Acre | C25: Acres | D25: Total | F25: Item | G25: Per Acre | H25: Acres | I25: Total
A26: =IF('Nutrient Mgt'!C42<0,'Nutrient Mgt'!B38,"NA") -> NA | B26: =IF('Nutrient Mgt'!C42<0,'Nutrient Mgt'!C42*-1,0) -> 0 | C26: =IF('Nutrient Mgt'!C42<0,'Nutrient Mgt'!C24,0) -> 0 | D26: =C26*B26 -> 0 | F26: =IF('Nutrient Mgt'!C42>0,'Nutrient Mgt'!B38,"NA") -> NA | G26: =IF('Nutrient Mgt'!C42>0,'Nutrient Mgt'!C42,0) -> 0 | H26: =IF('Nutrient Mgt'!C42>0,'Nutrient Mgt'!C24,0) -> 0 | I26: =H26*G26 -> 0
A27: =IF('Nutrient Mgt'!C92<0,'Nutrient Mgt'!B74,"NA") -> NA | B27: =IF('Nutrient Mgt'!C92<0,'Nutrient Mgt'!C92*-1,0) -> 0 | C27: =IF('Nutrient Mgt'!C92<0,'Nutrient Mgt'!C93,0) -> 0 | D27: 0 | F27: =IF('Nutrient Mgt'!C92>0,'Nutrient Mgt'!B74,"NA") -> NA | G27: =IF('Nutrient Mgt'!C92>0,'Nutrient Mgt'!C92,0) -> 0 | H27: =IF('Nutrient Mgt'!C92>0,'Nutrient Mgt'!C93,0) -> 0 | I27: 0
A28: =IF('Nutrient Mgt'!F107<0,'Nutrient Mgt'!B98,"NA") -> NA | B28: =IF('Nutrient Mgt'!F107<0,'Nutrient Mgt'!F107*-1,0) -> 0 | C28: =IF('Nutrient Mgt'!F107<0, 'Nutrient Mgt'!C24,0) -> 0 | D28: =B28*C28 -> 0 | F28: =IF('Nutrient Mgt'!F107>0,'Nutrient Mgt'!B98,"NA") -> NA | G28: =IF('Nutrient Mgt'!F107>0,'Nutrient Mgt'!F107,0) -> 0 | H28: =IF('Nutrient Mgt'!F107>0,'Nutrient Mgt'!C24,0) -> 0 | I28: =G28*H28 -> 0
A29: =IF('Nutrient Mgt'!F119<0, 'Nutrient Mgt'!B110,"NA") -> NA | B29: =IF('Nutrient Mgt'!F119<0,'Nutrient Mgt'!F119*-1,0) -> 0 | C29: =IF('Nutrient Mgt'!F119<0,'Nutrient Mgt'!C24,0) -> 0 | D29: =B29*C29 -> 0 | F29: =IF('Nutrient Mgt'!F119>0,'Nutrient Mgt'!B110,"NA") -> NA | G29: =IF('Nutrient Mgt'!F119>0,'Nutrient Mgt'!F119,0) -> 0 | H29: =IF('Nutrient Mgt'!F119>0,'Nutrient Mgt'!C24,0) -> 0 | I29: =G29*H29 -> 0
A30: =IF('Nutrient Mgt'!C138<0,'Nutrient Mgt'!B122,"NA") -> NA | B30: =IF('Nutrient Mgt'!C138<0,'Nutrient Mgt'!C138*-1,0) -> 0 | C30: =IF('Nutrient Mgt'!C138<0,'Nutrient Mgt'!C139,0) -> 0 | D30: 0 | F30: =IF('Nutrient Mgt'!C138>0,'Nutrient Mgt'!B122,"NA") -> NA | G30: =IF('Nutrient Mgt'!C138>0,'Nutrient Mgt'!C138,0) -> 0 | H30: =IF('Nutrient Mgt'!C138>0,'Nutrient Mgt'!C139,0) -> 0 | I30: 0
A31: =IF('Cover Crop'!C86<0,'Cover Crop'!B71,"NA") -> NA | B31: =IF('Cover Crop'!C86<0,'Cover Crop'!C86*-1,0) -> 0 | C31: =IF('Cover Crop'!C86<0,'Cover Crop'!C87,0) -> 0 | D31: 0 | F31: =IF('Orchard Info'!C34>0,'Orchard Info'!B34,"NA") -> NA | I31: =IF('Orchard Info'!C34>0,'Orchard Info'!D34,0) -> 0
A32: =IF('Cover Crop'!C110<0,'Cover Crop'!B92,"NA") -> NA | B32: =IF('Cover Crop'!C110<0,'Cover Crop'!C110*-1,0) -> 0 | C32: =IF('Cover Crop'!C110<0,'Cover Crop'!C111,0) -> 0 | D32: 0 | F32: =IF('Cover Crop'!E40>0,'Cover Crop'!B12,"NA") -> NA | G32: =IF('Cover Crop'!E40>0,'Cover Crop'!E40,0) -> 0 | H32: =IF('Cover Crop'!E40>0,SUM('Cover Crop'!C29:E29),0) -> 0 | I32: =H32*G32 -> 0
A33: =IF('Cover Crop'!C138>0,'Cover Crop'!B115,"NA") -> NA | B33: =IF('Cover Crop'!C138>0,'Cover Crop'!C138,0) -> 0 | C33: =IF('Cover Crop'!C$138>0,'Orchard Info'!C15,0) -> 0 | D33: 0 | F33: =IF('Cover Crop'!C86>0,'Cover Crop'!B71,"NA") -> NA | G33: =IF('Cover Crop'!C86>0,'Cover Crop'!C86,0) -> 0 | H33: =IF('Cover Crop'!C86>0,'Cover Crop'!C87,0) -> 0 | I33: 0
A34: =IF(Mulching!C29<0,Mulching!B8,"NA") -> NA | B34: =IF(Mulching!C29<0,Mulching!C29*-1,0) -> 0 | C34: =IF(Mulching!C29<0,Mulching!C30,0) -> 0 | D34: 0 | F34: =IF('Cover Crop'!C110>0,'Cover Crop'!B92,"NA") -> NA | G34: =IF('Cover Crop'!C110>0,'Cover Crop'!C110,0) -> 0 | H34: =IF('Cover Crop'!C110>0,'Cover Crop'!C111,0) -> 0 | I34: 0
A35: =IF(Mulching!C77<0,Mulching!B62,"NA") -> NA | B35: =IF(Mulching!C77<0,Mulching!C77*-1,0) -> 0 | C35: =IF(Mulching!C77<0,Mulching!C78,0) -> 0 | D35: 0 | F35: =IF('Orchard Info'!C35>0,'Orchard Info'!B35,"NA") -> NA | I35: =IF('Orchard Info'!C35>0, 'Orchard Info'!D35,0) -> 0
A36: =IF(Mulching!C99<0,Mulching!B83,"NA") -> NA | B36: =IF(Mulching!C99<0,Mulching!C99*-1,0) -> 0 | C36: =IF(Mulching!C99<0,Mulching!C100,0) -> 0 | D36: 0 | F36: =IF(Mulching!C29>0,Mulching!B8,"NA") -> NA | G36: =IF(Mulching!C29>0,Mulching!C29,0) -> 0 | H36: =IF(Mulching!C29>0,Mulching!C30,0) -> 0 | I36: 0
A37: =IF(Mulching!C127>0,Mulching!B104,"NA") -> NA | B37: =IF(Mulching!C127>0,Mulching!C127,0) -> 0 | C37: =IF(Mulching!C127>0,'Orchard Info'!C15,0) -> 0 | D37: 0 | F37: =IF(Mulching!C77>0,Mulching!B62,"NA") -> NA | G37: =IF(Mulching!C77>0,Mulching!C77,0) -> 0 | H37: =IF(Mulching!C77>0,Mulching!C78,0) -> 0 | I37: 0
A38: =IF('Compost Application'!C74<0,'Compost Application'!B59,"NA") -> NA | B38: =IF('Compost Application'!C74<0,'Compost Application'!C74*-1,0) -> 0 | C38: =IF('Compost Application'!C74<0,'Compost Application'!C75,0) -> 0 | D38: 0 | F38: =IF(Mulching!C99>0,Mulching!B83,"NA") -> NA | G38: =IF(Mulching!C99>0,Mulching!C99,0) -> 0 | H38: =IF(Mulching!C99>0,Mulching!C100,0) -> 0 | I38: 0
A39: =IF('Compost Application'!C96<0,'Compost Application'!B80,"NA") -> NA | B39: =IF('Compost Application'!C96<0,'Compost Application'!C96*-1,0) -> 0 | C39: =IF('Compost Application'!C96<0,'Compost Application'!C97,0) -> 0 | D39: 0 | F39: =IF('Orchard Info'!C36>0,'Orchard Info'!B36,"NA") -> NA | I39: =IF('Orchard Info'!C36>0,'Orchard Info'!D36,0) -> 0
A40: =IF('Compost Application'!C124>0,'Compost Application'!B101,"NA") -> NA | B40: =IF('Compost Application'!C124>0,'Compost Application'!C124,0) -> 0 | C40: =IF('Compost Application'!C124>0,'Orchard Info'!C15,0) -> 0 | D40: 0 | F40: =IF('Compost Application'!G26>0,'Compost Application'!B8,"NA") -> NA | G40: =IF('Compost Application'!G26>0,'Compost Application'!G26,0) -> 0 | H40: =IF('Compost Application'!G26>0,'Compost Application'!G27,0) -> 0 | I40: 0
A41: =IF('Nutrient Mgt'!C159>0,'Nutrient Mgt'!B159,"NA") -> NA | B41: =IF('Nutrient Mgt'!C159>0,'Nutrient Mgt'!C159,0) -> 0 | C41: =IF('Nutrient Mgt'!C159>0,'Nutrient Mgt'!D159,0) -> 0 | D41: 0 | F41: =IF('Compost Application'!C74>0,'Compost Application'!B59,"NA") -> NA | G41: =IF('Compost Application'!C74>0,'Compost Application'!C74,0) -> 0 | H41: =IF('Compost Application'!C74>0,'Compost Application'!C75,0) -> 0 | I41: 0
A42: =IF('Nutrient Mgt'!C160>0,'Nutrient Mgt'!B160,"NA") -> NA | B42: =IF('Nutrient Mgt'!C160>0,'Nutrient Mgt'!C160,0) -> 0 | C42: =IF('Nutrient Mgt'!C160>0,'Nutrient Mgt'!D160,0) -> 0 | D42: 0 | F42: =IF('Compost Application'!C96>0,'Compost Application'!B80,"NA") -> NA | G42: =IF('Compost Application'!C96>0,'Compost Application'!C96,0) -> 0 | H42: =IF('Compost Application'!C96>0,'Compost Application'!C97,0) -> 0 | I42: 0
A43: =IF('Nutrient Mgt'!C161>0,'Nutrient Mgt'!B161,"NA") -> NA | B43: =IF('Nutrient Mgt'!C161>0,'Nutrient Mgt'!C161,0) -> 0 | C43: =IF('Nutrient Mgt'!C161>0,'Nutrient Mgt'!D161,0) -> 0 | D43: 0 | F43: =IF('Orchard Info'!C37>0,'Orchard Info'!B37,"NA") -> NA | I43: =IF('Orchard Info'!C37>0,'Orchard Info'!D37,0) -> 0
A44: =IF('Cover Crop'!C159>0,'Cover Crop'!B159,"NA") -> NA | B44: =IF('Cover Crop'!C159>0,'Cover Crop'!C159,0) -> 0 | C44: =IF('Cover Crop'!C159>0,'Cover Crop'!D159,0) -> 0 | D44: 0 | F44: =IF('Nutrient Mgt'!C164>0,'Nutrient Mgt'!B164,"NA") -> NA | G44: =IF('Nutrient Mgt'!C164>0,'Nutrient Mgt'!C164,0) -> 0 | H44: =IF('Nutrient Mgt'!C164>0,'Nutrient Mgt'!D164,0) -> 0 | I44: =H44*G44 -> 0
A45: =IF('Cover Crop'!C160>0,'Cover Crop'!B160,"NA") -> NA | B45: =IF('Cover Crop'!C160>0,'Cover Crop'!C160,0) -> 0 | C45: =IF('Cover Crop'!C160>0,'Cover Crop'!D160,0) -> 0 | D45: 0 | F45: =IF('Nutrient Mgt'!C165>0,'Nutrient Mgt'!B165,"NA") -> NA | G45: =IF('Nutrient Mgt'!C165>0,'Nutrient Mgt'!C165,0) -> 0 | H45: =IF('Nutrient Mgt'!C165>0,'Nutrient Mgt'!D165,0) -> 0 | I45: 0
A46: =IF('Cover Crop'!C161>0,'Cover Crop'!B161,"NA") -> NA | B46: =IF('Cover Crop'!C161>0,'Cover Crop'!C161,0) -> 0 | C46: =IF('Cover Crop'!C161>0,'Cover Crop'!D161,0) -> 0 | D46: 0 | F46: =IF('Nutrient Mgt'!C166>0,'Nutrient Mgt'!B166,"NA") -> NA | G46: =IF('Nutrient Mgt'!C166>0,'Nutrient Mgt'!C166,0) -> 0 | H46: =IF('Nutrient Mgt'!C166>0,'Nutrient Mgt'!D166,0) -> 0 | I46: 0
A47: =IF(Mulching!C148>0,Mulching!B148,"NA") -> NA | B47: =IF(Mulching!C148>0,Mulching!C148,0) -> 0 | C47: =IF(Mulching!C148>0,Mulching!D148,0) -> 0 | D47: 0 | F47: =IF('Cover Crop'!C164>0,'Cover Crop'!B164,"NA") -> NA | G47: =IF('Cover Crop'!C164>0,'Cover Crop'!C164,0) -> 0 | H47: =IF('Cover Crop'!C164>0,'Cover Crop'!D164,0) -> 0 | I47: 0
A48: =IF(Mulching!C149>0,Mulching!B149,"NA") -> NA | B48: =IF(Mulching!C149>0,Mulching!C149,0) -> 0 | C48: =IF(Mulching!C149>0,Mulching!D149,0) -> 0 | D48: 0 | F48: =IF('Cover Crop'!C165>0,'Cover Crop'!B165,"NA") -> NA | G48: =IF('Cover Crop'!C165>0,'Cover Crop'!C165,0) -> 0 | H48: =IF('Cover Crop'!C165>0,'Cover Crop'!D165,0) -> 0 | I48: 0
A49: =IF(Mulching!C150>0,Mulching!B150,"NA") -> NA | B49: =IF(Mulching!C150>0,Mulching!C150,0) -> 0 | C49: =IF(Mulching!C150>0,Mulching!D150,0) -> 0 | D49: 0 | F49: =IF('Cover Crop'!C166>0,'Cover Crop'!B166,"NA") -> NA | G49: =IF('Cover Crop'!C166>0,'Cover Crop'!C166,0) -> 0 | H49: =IF('Cover Crop'!C166>0,'Cover Crop'!D166,0) -> 0 | I49: 0
A50: =IF('Compost Application'!C142>0,'Compost Application'!B142,"NA") -> NA | B50: =IF('Compost Application'!C142>0,'Compost Application'!C142,0) -> 0 | C50: =IF('Compost Application'!C142>0,'Compost Application'!D142,0) -> 0 | D50: 0 | F50: =IF(Mulching!C153>0,Mulching!B153,"NA") -> NA | G50: =IF(Mulching!C153>0,Mulching!C153,0) -> 0 | H50: =IF(Mulching!C153>0,Mulching!D153,0) -> 0 | I50: 0
A51: =IF('Compost Application'!C143>0,'Compost Application'!B143,"NA") -> NA | B51: =IF('Compost Application'!C143>0,'Compost Application'!C143,0) -> 0 | C51: =IF('Compost Application'!C143>0,'Compost Application'!D143,0) -> 0 | D51: 0 | F51: =IF(Mulching!C154>0,Mulching!B154,"NA") -> NA | G51: =IF(Mulching!C154>0,Mulching!C154,0) -> 0 | H51: =IF(Mulching!C154>0,Mulching!D154,0) -> 0 | I51: 0
A52: =IF('Compost Application'!C144>0,'Compost Application'!B144,"NA") -> NA | B52: =IF('Compost Application'!C144>0,'Compost Application'!C144,0) -> 0 | C52: =IF('Compost Application'!C144>0,'Compost Application'!D144,0) -> 0 | D52: 0 | F52: =IF(Mulching!C155>0,Mulching!B155,"NA") -> NA | G52: =IF(Mulching!C155>0,Mulching!C155,0) -> 0 | H52: =IF(Mulching!C155>0,Mulching!D155,0) -> 0 | I52: 0
A53: =IF('Combined Practice Effects'!C49<0,'Combined Practice Effects'!B36,"NA") -> NA | B53: =IF('Combined Practice Effects'!C49<0,'Combined Practice Effects'!C49*-1,0) -> 0 | C53: =IF('Combined Practice Effects'!C49<0,'Combined Practice Effects'!C50,0) -> 0 | D53: 0 | F53: =IF('Compost Application'!C147>0,'Compost Application'!B147,"NA") -> NA | G53: =IF('Compost Application'!C147>0,'Compost Application'!C147,0) -> 0 | H53: =IF('Compost Application'!C147>0,'Compost Application'!D147,0) -> 0 | I53: 0
A54: =IF('Combined Practice Effects'!C69<0,'Combined Practice Effects'!B55,"NA") -> NA | B54: =IF('Combined Practice Effects'!C69<0,'Combined Practice Effects'!C69*-1,0) -> 0 | C54: =IF('Combined Practice Effects'!C69<0,'Combined Practice Effects'!C70,0) -> 0 | D54: 0 | F54: =IF('Compost Application'!C148>0,'Compost Application'!B148,"NA") -> NA | G54: =IF('Compost Application'!C148>0,'Compost Application'!C148,0) -> 0 | H54: =IF('Compost Application'!C148>0,'Compost Application'!D148,0) -> 0 | I54: 0
A55: =IF('Combined Practice Effects'!C95>0,'Combined Practice Effects'!B74,"NA") -> NA | B55: =IF('Combined Practice Effects'!C95>0,'Combined Practice Effects'!C95,0) -> 0 | C55: =IF('Combined Practice Effects'!C95>0,'Orchard Info'!C15,0) -> 0 | D55: 0 | F55: =IF('Compost Application'!C149>0,'Compost Application'!B149,"NA") -> NA | G55: =IF('Compost Application'!C149>0,'Compost Application'!C149,0) -> 0 | H55: =IF('Compost Application'!C149>0,'Compost Application'!D149,0) -> 0 | I55: 0
A56: =IF('Combined Practice Effects'!C106>0,'Combined Practice Effects'!B106,"NA") -> NA | B56: =IF('Combined Practice Effects'!C106>0,'Combined Practice Effects'!C106,0) -> 0 | C56: =IF('Combined Practice Effects'!C106>0,'Combined Practice Effects'!D106,0) -> 0 | D56: 0 | F56: =IF('Combined Practice Effects'!C49>0,'Combined Practice Effects'!B36,"NA") -> NA | G56: =IF('Combined Practice Effects'!C49>0,'Combined Practice Effects'!C49,0) -> 0 | H56: =IF('Combined Practice Effects'!C49>0,'Combined Practice Effects'!C50,0) -> 0 | I56: 0
A57: =IF('Combined Practice Effects'!C107>0,'Combined Practice Effects'!B107,"NA") -> NA | B57: =IF('Combined Practice Effects'!C107>0,'Combined Practice Effects'!C107,0) -> 0 | C57: =IF('Combined Practice Effects'!C107>0,'Combined Practice Effects'!D107,0) -> 0 | D57: 0 | F57: =IF('Combined Practice Effects'!C69>0,'Combined Practice Effects'!B55,"NA") -> NA | G57: =IF('Combined Practice Effects'!C69>0,'Combined Practice Effects'!C69,0) -> 0 | H57: =IF('Combined Practice Effects'!C69>0,'Combined Practice Effects'!C70,0) -> 0 | I57: 0
A58: =IF('Combined Practice Effects'!C108>0,'Combined Practice Effects'!B108,"NA") -> NA | B58: =IF('Combined Practice Effects'!C108>0,'Combined Practice Effects'!C108,0) -> 0 | C58: =IF('Combined Practice Effects'!C108>0,'Combined Practice Effects'!D108,0) -> 0 | D58: 0 | F58: =IF('Orchard Info'!C39>0,'Orchard Info'!B39,"NA") -> NA | I58: =IF('Orchard Info'!C39>0,'Orchard Info'!D39,0) -> 0
F59: =IF('Combined Practice Effects'!C111>0,'Combined Practice Effects'!B111,"NA") -> NA | G59: =IF('Combined Practice Effects'!C111>0,'Combined Practice Effects'!C111,0) -> 0 | H59: =IF('Combined Practice Effects'!C111>0,'Combined Practice Effects'!D111,0) -> 0 | I59: =H59*G59 -> 0
F60: =IF('Combined Practice Effects'!C112>0,'Combined Practice Effects'!B112,"NA") -> NA | G60: =IF('Combined Practice Effects'!C112>0,'Combined Practice Effects'!C112,0) -> 0 | H60: =IF('Combined Practice Effects'!C112>0,'Combined Practice Effects'!D112,0) -> 0 | I60: =H60*G60 -> 0
F61: =IF('Combined Practice Effects'!C113>0,'Combined Practice Effects'!B113,"NA") -> NA | G61: =IF('Combined Practice Effects'!C113>0,'Combined Practice Effects'!C113,0) -> 0 | H61: =IF('Combined Practice Effects'!C113>0,'Combined Practice Effects'!D113,0) -> 0 | I61: =H61*G61 -> 0
A62: Total Decreased Cost | D62: =IFERROR(SUM(D26:D58),0) -> 0 | F62: Total Increased Cost | I62: =IFERROR(SUM(I26:I61),0) -> 0
A64: Annual Total Increased Net Income | D64: =IFERROR(D62+D23,0) -> 0 | F64: Annual Total Decreased Net Income | I64: =IFERROR(I62+I23,0) -> 0
A65: Total Acres in this Study Area | D65: ='Orchard Info'!C15 -> 0 | F65: Total Acres in this Study Area | I65: ='Orchard Info'!C15 -> 0
A66: Annual Per Acre Increased Net Income | D66: =IFERROR(ROUND(D64/D65,0),0) -> 0 | F66: Annual Per Acre Decreased Net Income | I66: =IFERROR(ROUND(I64/I65,0),0) -> 0
A68: Annual Change in Total Net Income | E68: = | F68: =IFERROR(D64-I64,0) -> 0
A69: Annual Change in Per Acre Net Income | E69: = | F69: =IFERROR(F68/D65,0) -> 0
A70: Return on Investment | E70: = | F70: =IFERROR(F68/I64,0) -> 0
A71: Footnotes: | J71: Notes to authors about editing footnotes:
A72: This table represents estimated average costs and benefits attributed to adopting [list SH practices] over the entire study area (### acres), where [list crops] are grown, as reported by the grower. | J72: Update with featured grower's information.
A74: All values are in 2023 dollars.
A75: Prices are stated as per acre values for items that vary by area. Prices such as learning costs, which don't vary by area, are only given as total costs. | J75: If applicable
A76: Prices used (5-yr rolling averages): Almond: $2.11/lb, Pistachios: $2.76/lb, Walnuts: $0.71/lb (USDA NASS, 2019-2023, Survey - Commodity Price Received: Price Received Measured in $/lb (California only), QuickStats, Retrieved May 10, 2024); Nitrogen: $0.63/lb, Phosphate: $0.61/lb, Potash: $0.54/lb (Iowa State University Extension and Outreach, Ag Decision Maker: Estimated Costs of Crop Production in Iowa (File A1-20), 2019-2023 average, Retrieved on February 6, 2024.); 2023 hourly labor rate: $29.23/hr (U.S. Bureau of Labor Statistics, 2023, Occupational Employment & Wage Statistics, First-Line Supervisors of Farming). | J76: Only include applicable crop price if there was a change in yield. Only include applicable fertilizer prices if there was a change in fertilizer use.
A81: Value of decreased erosion ($2.07/ton) is based on estimated N & P content of the soil (2.32 lbs N/ton, 1 lb P/ton) and fertilizer prices (USDA NRCS, May 2010, Benefit-Cost Analysis for the EQIP) and [insert farmer name] estimate of reduced mechanical erosion repair costs. | J81: Only include if there was a change in erosion rate, then edit appropriately depending on if grower provided an annual savings in mechanical erosion repair cost.
A83: Return on Investment is the ratio of Annual Total Change in Net Income to Annual Total Decreased Net Income, as a percent.
A84: This material is based on work by American Farmland Trust supported by USDA NRCS CIG grant NR183A750008G008. | J84: Option to add applicable funding information
A85: For information about study methodology, see farmland.org/soilhealthcasestudies.
A86: [insert grower's first name] received [insert amount, e.g., $/ac/yr or $/yr] through the [insert name of program (years active)]. This is not included in the analysis because cost-share is temporary and not received by all. | J86: Only include if grower received financial assistance. Complete missing information based on grower's unique circumstances.
A89: Impact of Financial Assistance Payments
A90: Increase in Income
A91: Soil Health Practice | B91: Per Acre | C91: Acres | D91: Total
A92: Nutrient Management | B92: =IFERROR('Nutrient Mgt'!F149,0) -> 0 | C92: ='Orchard Info'!C$15 -> 0 | D92: =C92*B92 -> 0
A93: Cover Crop | B93: =IFERROR('Cover Crop'!F148,0) -> 0 | C93: ='Orchard Info'!C$15 -> 0 | D93: =C93*B93 -> 0
A94: Mulching | B94: =IFERROR(Mulching!F138,0) -> 0 | C94: ='Orchard Info'!C$15 -> 0 | D94: 0
A95: Compost Application | B95: =IFERROR('Compost Application'!F135,0) -> 0 | C95: ='Orchard Info'!C$15 -> 0 | D95: 0
A96: Total Increase due to Financial Assistance | D96: =SUM(D92:D95) -> 0
A97: Annual Change in Total Net Income = | D97: =IFERROR(F68+D96,0) -> 0
A98: Annual Change in Per Acre Net Income = | D98: =IFERROR(D97/'Orchard Info'!C15,0) -> 0

Sheet Prices
A1: PRICES
A2: ABOUT THIS TAB:
A3: This tab is the source for price information used throughout the workbook. The prices and costs appearing below are linked to the preceeding tabs to calculate costs and savings as data is entered. Consequently, changes to values on this tab will automatically update the costs or savings calculated throughout the workbook. Users should enter their prefered fertilizer or crop prices on the 'Orchard Info' tab (not on this tab).
B7: Labor Rate - Farm Manager
B8: Year | C8: $/hr
B9: 2023 | C9: 29.23
B10: 1 U.S. Bureau of Labor Statistics. (April 3, 2024). 45-1011 First-Line Supervisors of Farming, Fishing, and Forestry Workers. Occupational Employment and Wages, May 2023. Retrieved May 10 2024, from https://www.bls.gov/oes/current/oes_nat.htm#45-0000
B14: Tree Nut Prices, California State Averages, 2010-2023 1
B15: Note: The tool uses the 5-year rolling average crop prices. The year-by-year prices are for reference only AND are not adjusted to 2023 values. The 5-year rolling average uses adjusted 2019-2023 values using the Prices Received Index.
B18: Year | C18: Almond ($/lb) | D18: Pistachio ($/lb) | E18: Walnut ($/lb)
B19: 2019-2023 | C19: =AVERAGE(C20,C21*($H$118/$G$118),C22*($H$118/$F$118),C23*($H$118/$E$118),C24*($H$118/$D$118)) -> 2.1050265 | D19: =AVERAGE(D20,D21*($H$118/$G$118),D22*($H$118/$F$118),D23*($H$118/$E$118),D24*($H$118/$D$118)) -> 2.761154564 | E19: =AVERAGE(E20,E21*($H$118/$G$118),E22*($H$118/$F$118),E23*($H$118/$E$118),E24*($H$118/$D$118)) -> 0.7105476519
B20: 2023 | C20: 1.64 | D20: 2 | E20: 0.42
B21: 2022 | C21: 1.4 | D21: 2.11 | E21: 0.3
B22: 2021 | C22: 1.86 | D22: 2.52 | E22: 0.725
B23: 2020 | C23: 1.71 | D23: 2.51 | E23: 0.6
B24: 2019 | C24: 2.45 | D24: 2.81 | E24: 0.945
B25: 2018 | C25: 2.5 | D25: 2.65 | E25: 0.675
B26: 2017 | C26: 2.53 | D26: 1.69 | E26: 1.245
B27: 2016 | C27: 2.39 | D27: 1.68 | E27: 0.925
B28: 2015 | C28: 3.13 | D28: 3.29 | E28: 0.835
B29: 2014 | C29: 4 | D29: 3.57 | E29: 1.67
B30: 2013 | C30: 3.21 | D30: 3.48 | E30: 1.855
B31: 2012 | C31: 2.58 | D31: 2.61 | E31: 1.515
B32: 2011 | C32: 1.99 | D32: 1.98 | E32: 1.45
B33: 2010 | C33: 1.79 | D33: 2.22 | E33: 1.02
B34: 1 USDA NASS. (2010-2023). Survey - Commodity Price Received: Price Received Measured in $/lb (California only). QuickStats. Retrieved May 10, 2024, from https://quickstats.nass.usda.gov/results/1EE7EA82-BF2D-3153-A98A-49AE038F23EE
B38: Organic Tree Nut Prices, National Averages, 2019-2023 1,2
B39: Note: The tool uses the 5-year rolling average crop prices. The year-by-year prices are for reference only AND are not adjusted to 2023 values. The 5-year rolling average uses adjusted 2019-2023 values using the Prices Received Index.
B42: Year | C42: Almond ($/lb) | D42: Pistachio ($/lb) | E42: Walnut ($/lb)
B43: 2019-2023 | C43: =AVERAGE(C44,C45*($H$118/$G$118),C46*($H$118/$F$118),C47*($H$118/$E$118),C48*($H$118/$D$118)) -> 4.917160395 | D43: =AVERAGE(D44,D45*($H$118/$G$118),D46*($H$118/$F$118),D47*($H$118/$E$118),D48*($H$118/$D$118)) -> 3.978782367 | E43: =AVERAGE(E44,E45*($H$118/$G$118),E46*($H$118/$F$118),E47*($H$118/$E$118),E48*($H$118/$D$118)) -> 1.66352367
B44: 2023* | C44: =C45*$H$119 -> 4.064649478 | D44: =D45*$H$119 -> 3.386875616 | E44: =E45*$H$119 -> 1.218041331
B45: 2022* | C45: =C46*$G$119 -> 4.331897974 | D45: =D46*$G$119 -> 3.609560849 | E45: =E46*$G$119 -> 1.298126887
B46: 2021 | C46: =65499121/17813092 -> 3.677021429 | D46: =20952358/6838496 -> 3.06388393 | E46: =(18469746/8381)/2000 -> 1.101881995
B47: 2020* | C47: =C48*$E$119 -> 4.758884522 | D47: =D48*$E$119 -> 3.737905643 | E47: =E48*$E$119 -> 1.79093717
B48: 2019 | C48: =32975908/7144888 -> 4.615314894 | D48: =11572295/3192236 -> 3.625137678 | E48: =(34877089/10040)/2000 -> 1.736906823
B49: 1 USDA NASS. (2020, October 22). Certified Organic Survey 2019 Summary: Table 8. Certified Organic Tree Nuts Harvested and Value of Sales. Retrieved Feb. 17, 2022, from www.nass.usda.gov/Surveys/Guide_to_NASS_Surveys/Organic_Production/index.php
B52: 2 USDA NASS. (2022, December 15). Certified Organic Survey 2021 Summary: Table 8. Certified Organic Tree Nuts Harvested and Value of Sales. Retrieved May 10, 2024, from www.nass.usda.gov/Surveys/Guide_to_NASS_Surveys/Organic_Production/index.php
B55: * 2020, 2022, and 2023 nut prices calculated using the Prices Received Index.
B58: Fertilizer Prices, 2019-2023 1 | J58: Archive - Fertilizer Prices by Year, 2019-2023 1
B59: Note: Using the 5-year rolling average price column. The year-by-year prices are for reference only and are adjusted to 2023 values. | J59: Note: These year-by-year prices are for reference only and are actual values.
B60: Fertilizer Element | C60: 5-yr Rolling Avg. Price (2023 $/lb) | D60: 2019 Prices (2023 $/lb) | E60: 2020 Prices (2023 $/lb) | F60: 2021 Prices (2023 $/lb) | G60: 2022 Prices (2023 $/lb) | H60: 2023 Prices ($/lb) | J60: Fertilizer Element | K60: 2019 Prices ($/lb) | L60: 2020 Prices ($/lb) | M60: 2021 Prices ($/lb) | N60: 2022 Prices ($/lb) | O60: 2023 Prices ($/lb)
B61: Nitrogen | C61: =AVERAGE(D61:H61) -> 0.6275676287 | D61: =K61*($H$98/$D$98) -> 0.4285181269 | E61: =L61*($H$98/$E$98) -> 0.4289068642 | F61: =M61*($H$98/$F$98) -> 0.8386597794 | G61: =N61*($H$98/$G$98) -> 0.841753373 | H61: =O61 -> 0.6 | J61: Nitrogen | K61: 0.34 | L61: 0.34 | M61: 0.72 | N61: 0.83 | O61: 0.6
B62: Phosphorous | C62: =AVERAGE(D62:H62) -> 0.6146598605 | D62: =K62*($H$98/$D$98) -> 0.4285181269 | E62: =L62*($H$98/$E$98) -> 0.4919814031 | F62: =M62*($H$98/$F$98) -> 0.7221792545 | G62: =N62*($H$98/$G$98) -> 0.7606205178 | H62: =O62 -> 0.67 | J62: Phosphorous | K62: 0.34 | L62: 0.39 | M62: 0.62 | N62: 0.75 | O62: 0.67
B63: Potash | C63: =AVERAGE(D63:H63) -> 0.5363283147 | D63: =K63*($H$98/$D$98) -> 0.3907077039 | E63: =L63*($H$98/$E$98) -> 0.3784472331 | F63: =M63*($H$98/$F$98) -> 0.6522909396 | G63: =N63*($H$98/$G$98) -> 0.7301956971 | H63: =O63 -> 0.53 | J63: Potash | K63: 0.31 | L63: 0.3 | M63: 0.56 | N63: 0.72 | O63: 0.53
B64: 1 Iowa State University Extension and Outreach. (2020-2024). Ag Decision Maker: Estimated Costs of Crop Production in Iowa (File A1-20). Retrieved on February 6, 2024 from https://www.extension.iastate.edu/agdm/crops/html/a1-20.html
B66: Note: Nitrogen price is the average of anhydrous ammonia, Urea, and UAN prices. Phosphorus price is for phosphate. Potassium price for potash.
B69: Calculated Value ($/ton) of Reduced Nutrient Loss with Soil Erosion Reduction
B70: Fertilizer | C70: lbs/ton of soil1 | D70: 5-yr Rolling Avg. Price (2023 $/lb) | E70: $/ton
B71: Nitrogen | C71: 2.32 | D71: =C61 -> 0.6275676287 | E71: =D71*C71 -> 1.455956899
B72: Phosphorus | C72: 1 | D72: =C62 -> 0.6146598605 | E72: =D72*C72 -> 0.6146598605
B73: Total Combined Fertilizer Benefit ($/ton) | E73: =SUM(E71:E72) -> 2.070616759
B74: 1 USDA NRCS. (May 24, 2010). Final Benefit-Cost Analysis for the Environmental Quality Incentives Program (EQIP). Retrieved on February 22, 2022, from https://www.blogs.nrcs.usda.gov/Internet/FSE_DOCUMENTS/16/nrcs143_007976.pdf
B77: Note: Following page 23 instructions in the above referece, we estimate the amount of Nitrogen and Phosphorous per ton eroded soil. They assume topsoil contains 40 lbs of organic matter of which 23.2 lbs is carbon. With an average carbon-nitrogren ratio of 10 to 1, each ton of soil eroded contains 2.32 lbs of nitrogen. The soil also contains 0.05% phosphorus, or one pound per ton of soil.
B83: Prices Paid Index (PPI): All Items
B84: United States: 2011=100
B85: Month | C85: 2018 | D85: 2019 | E85: 2020 | F85: 2021 | G85: 2022 | H85: 2023
B86: January | C86: 108.6 | D86: 110.8 | E86: 111 | F86: 113.4 | G86: 131 | H86: 140.3
B87: February | C87: 109.5 | D87: 110.7 | E87: 110.6 | F87: 114.8 | G87: 133.1 | H87: 140.3
B88: March | C88: 109.7 | D88: 110.9 | E88: 109.7 | F88: 116 | G88: 135 | H88: 140.3
B89: April | C89: 109.3 | D89: 111.4 | E89: 108.5 | F89: 117 | G89: 137.6 | H89: 139.7
B90: May | C90: 109.7 | D90: 110.8 | E90: 108.6 | F90: 117.9 | G90: 137.8 | H90: 138.9
B91: June | C91: 109.4 | D91: 110.3 | E91: 108.8 | F91: 119.2 | G91: 138.3 | H91: 138.5
B92: July | C92: 109.5 | D92: 110.4 | E92: 109.5 | F92: 120.4 | G92: 138.7 | H92: 138.6
B93: August | C93: 109.6 | D93: 109.6 | E93: 109.8 | F93: 121 | G93: 139.3 | H93: 138.7
B94: September | C94: 109.5 | D94: 109.2 | E94: 110.3 | F94: 121.3 | G94: 138.8 | H94: 138.7
B95: October | C95: 110 | D95: 109.9 | E95: 111.2 | F95: 122.7 | G95: 138.6 | H95: 138.8
B96: November | C96: 110.1 | D96: 110 | E96: 112 | F96: 123.7 | G96: 138.8 | H96: 138.3
B97: December | C97: 110.3 | D97: 110 | E97: 112.8 | F97: 125.2 | G97: 138.4 | H97: 137.6
B98: Average Annual PPI | C98: =AVERAGE(C86:C97) -> 109.6 | D98: =AVERAGE(D86:D97) -> 110.3333333 | E98: =AVERAGE(E86:E97) -> 110.2333333 | F98: 119.3833333 | G98: =AVERAGE(G86:G97) -> 137.1166667 | H98: =AVERAGE(H86:H97) -> 139.0583333
B99: % PPI Change from previous year | D99: =D98/C98 -> 1.006690998 | E99: =E98/D98 -> 0.9990936556 | F99: =F98/E98 -> 1.083005745 | G99: =G98/F98 -> 1.148541114 | H99: =H98/G98 -> 1.01416069
B100: USDA NASS. (Ongoing). Prices Paid: Indexes for All Items and Production Items by Month - United States. Retrieved February 6, 2024 from https://www.nass.usda.gov/Charts_and_Maps/Agricultural_Prices/index.php
B103: Prices Received Index (PRI): Crop Production
B104: United States: 2011=100
B105: Month | C105: 2018 | D105: 2019 | E105: 2020 | F105: 2021 | G105: 2022 | H105: 2023
B106: January | C106: 78.4 | D106: 78 | E106: 82.2 | F106: 88.3 | G106: 105 | H106: 118
B107: February | C107: 86.3 | D107: 84.3 | E107: 86.6 | F107: 97.2 | G107: 114.6 | H107: 120.6
B108: March | C108: 87.7 | D108: 87.2 | E108: 87.4 | F108: 98.5 | G108: 120.9 | H108: 118.7
B109: April | C109: 88.4 | D109: 85.2 | E109: 86.3 | F109: 105.1 | G109: 122.9 | H109: 126.2
B110: May | C110: 88.7 | D110: 84 | E110: 86.7 | F110: 106.1 | G110: 124.2 | H110: 120.6
B111: June | C111: 89.8 | D111: 89.5 | E111: 89.5 | F111: 107.5 | G111: 126.9 | H111: 120.7
B112: July | C112: 86.5 | D112: 88.9 | E112: 88.4 | F112: 106.8 | G112: 125 | H112: 119.5
B113: August | C113: 89.3 | D113: 89.4 | E113: 89.9 | F113: 110.5 | G113: 128.2 | H113: 117.7
B114: September | C114: 87.8 | D114: 88.4 | E114: 93.1 | F114: 108.8 | G114: 126.8 | H114: 112.4
B115: October | C115: 80 | D115: 83 | E115: 87.8 | F115: 106.4 | G115: 121.6 | H115: 103.9
B116: November | C116: 83.9 | D116: 84.8 | E116: 91.6 | F116: 107.5 | G116: 127 | H116: 101
B117: December | C117: 87.4 | D117: 86 | E117: 91.2 | F117: 106.6 | G117: 128.7 | H117: 101.7
B118: Average Annual PRI | C118: =AVERAGE(C106:C117) -> 86.18333333 | D118: =AVERAGE(D106:D117) -> 85.725 | E118: 88.39166667 | F118: 104.1083333 | G118: 122.65 | H118: 115.0833333
B119: % PRI Change from previous year | D119: =D118/C118 -> 0.9946818797 | E119: =E118/D118 -> 1.031107223 | F119: =F118/E118 -> 1.177807109 | G119: =G118/F118 -> 1.178099736 | H119: =H118/G118 -> 0.9383068352
B120: USDA NASS. (Ongoing). Prices Received: Indexes for Ag, Crop, and Livestock Production by Month - United States. Retrieved February 6, 2024, from https://www.nass.usda.gov/Charts_and_Maps/Agricultural_Prices/index.php

Sheet Machinery Costs
A1: MACHINERY COSTS
A3: ABOUT THIS TAB:
A4: This tab contains machinery costs expressed on a per acre basis. Costs include overhead (depreciation, interest, insurance, housing, and repair charges) for both the tractor and the implement it is pulling, fuel and lubrication costs, and labor costs. These costs are used to calculate changes in fertilizer application costs on the "Nutrient Mgt" tab. About half of the costs shown below are from the University of Illinois Farmdoc website. The remaining options for fertilizer application are from the Iowa State Custom Rate Survey as they were not available from the University of Illinois. We chose the University of Illinois and Iowa State University as a source for fertilizer application machinery costs because their data set appeared to be the most comprehensive and there is no similar nation-wide list of machinery costs. Users should evaluate the costs shown for relevancy in their area and make adjustments as needed being careful to document all changes. Please reference the two University of California Davis almond budgets in the "Ref 1..." and "Ref 2..." tabs; or visit https://coststudies.ucdavis.edu/current/commodities to reference pistachio and walnut budgets as well. Note: If a user needs to add their own equipment and per acre cost, you can add to this list as needed in the clearly identified, yellow-shaded cells with instructions. We encourage using published prices as those include depreciation, labor, fuel, interest, storage, insurance, etc. Most farmers will undervalue their per acre machinery costs.
B17: Fertilizer Application Machinery Costs1,2,3 | H17: Archived Machinery Costs4,5
B18: Item | C18: Source | D18: Tractor HP | E18: 2023 ($/ac) | H18: 2019 ($/ac) | I18: 2021 ($/ac)
B19: Anhydrous ammonia applicator, 27 ft. 6 in. | C19: Univ. Illinois | D19: 140 | E19: 26.3 | H19: 17.6 | I19: 18.8
B20: Anhydrous ammonia applicator, 37 ft. 6 in. | C20: Univ. Illinois | D20: 240 | E20: 24.6 | H20: 17.2 | I20: 17.9
B21: Anhydrous ammonia applicator, 47 ft. 6 in. | C21: Univ. Illinois | D21: 290 | E21: 21.1 | H21: 16.5 | I21: 17.1
A22: ** | B22: Anhydrous ammonia applicator, 52 ft. 6 in. | C22: Univ. Illinois | D22: 370 | E22: 19.1 | H22: 15.3 | I22: 16.4
B23: Anhydrous ammonia applicator, 62 ft. 6 in. | C23: Univ. Illinois | D23: 470 | E23: 18.5 | H23: 14 | I23: 14.9
B24: Fertilizer Application, Anhydrous, injecting, with tool bar | C24: Iowa State Univ. | E24: 14.75 | H24: 12.5 | I24: 13.4
B25: Fertilizer Application, Anhydrous, injecting, without tool bar | C25: Iowa State Univ. | E25: 12.5 | H25: 11.4 | I25: 11.95
B26: Fertilizer application, dry bulk, applied | C26: Iowa State Univ. | E26: 6.75 | H26: 5.8 | I26: 6.15
B27: Fertilizer application, liquid, side dressing | C27: Iowa State Univ. | E27: 13 | H27: 11.35 | I27: 11.35
B28: Fertilizer application, liquid, spraying | C28: Iowa State Univ. | E28: 8 | H28: 7.3 | I28: 6.8
B29: Manure Application, liquid, drag line ($/gal) | C29: Iowa State Univ.3 | E29: 0.0135 | H29: NA | I29: =12.7/1000 -> 0.0127
B30: Manure Application, liquid, injected ($/gal) | C30: Iowa State Univ.3 | E30: 0.015 | H30: NA | I30: =13.35/1000 -> 0.01335
B31: Manure Application, loading and spreading solid manure ($/hr) | C31: Iowa State Univ.3 | E31: 110 | H31: NA | I31: 141.65
B32: Self-propelled sprayer (High-crop ready), 80 ft boom | C32: Univ. Illinois | D32: 85 | E32: 5.7 | H32: 4.4 | I32: 5.2
B33: Self-propelled sprayer (High-crop ready), 90 ft boom | C33: Univ. Illinois | D33: 85 | E33: 7.3 | H33: 5.3 | I33: 6.4
B34: Self-propelled sprayer (High-crop ready), 100 ft boom | C34: Univ. Illinois | D34: 85 | E34: 6.7 | H34: 5 | I34: 5.7
B35: Self-propelled sprayer, 120 ft boom | C35: Univ. Illinois | D35: 85 | E35: 5.8 | H35: 4.4 | I35: 4.5
B36: Option: Insert additional machinery in 'Machinery Costs' tab | H36: 4 University of Illinois at Urbana-Champaign Department of Ag and Consumer Economics. (September 2019 & 2021). Farm Business Management Machinery Cost Estimates: Field Operations. Retrieved on February 22, 2022 from https://farmdoc.illinois.edu/management#handbook
B37: Option: Insert additional machinery in 'Machinery Costs' tab
B38: Option: Insert additional machinery in 'Machinery Costs' tab
B39: Option: Insert additional machinery in 'Machinery Costs' tab
B40: 1 University of Illinois at Urbana-Champaign Department of Ag and Consumer Economics. (September 2023). Farm Business Management Machinery Cost Estimates: Field Operations. Retrieved on November 28, 2023 from https://farmdoc.illinois.edu/management#handbook | H40: 5 Iowa State University Extension and Outreach. (March 2019 & 2021). Ag Decision Maker: 2023 Iowa Farm Custom Rate Survey (File A3-10). Retrieved on November 28, 2023 from https://www.extension.iastate.edu/agdm/crops/html/a3-10.html
B43: 2 Iowa State University Extension and Outreach. (March 2023). Ag Decision Maker: 2023 Iowa Farm Custom Rate Survey (File A3-10). Retrieved on November 28, 2023 from https://www.extension.iastate.edu/agdm/crops/html/a3-10.html
B45: 3 Liquid manure application costs were converted from $/1000 gallons to $/gallon.
B46: ** 2023 machinery cost calculated by applying the Prices Paid Index to 2021 published costs because the 2023 University of Illinois publication did not include machinery cost estimates for this size.

Sheet Ref 1- UCDavis SJV North Budget
A1: 2019 UC Davis San Joaquin Valley North Almond Production Budget (Micro-sprinkler Irrigation System)
A2: https://coststudies.ucdavis.edu/current/commodities
A3: ABOUT THIS TAB:
A4: These University of California, Davis almond budgets are an additional, regionally-specific list of costs per acre for various operations that may be difficult for farmers to estimate. Users should present this list to their farmers' as needed for adding costs into the Tool, such as a leaf analysis, bee hive, hull analysis, or NOW Winter Sanitation costs per acre. For pistachio and walnut budgets as well, visit https://coststudies.ucdavis.edu/current/commodities (hyperlinked above).
A7: Source: Duncan, R.A., Gordon, P.E., Holtz, B.A., & Stewart, D. UCCE, UC-AIC, & UCDavis-ARE. (2022). 2019 Sample Costs to Establish an Orchard and Produce Almonds: San Joaquin Valley North Micro-sprinkler Irrigation. Retrieved on May 1, 2022 from https://coststudies.ucdavis.edu/en/current/
... 8 more rows

Sheet Ref 2- UCDavis SJV South Budget
A1: 2019 UC Davis San Joaquin Valley South Almond Production Budget (Double-line Drip Irrigation System)
A2: https://coststudies.ucdavis.edu/current/commodities
A3: ABOUT THIS TAB:
A4: These University of California, Davis almond budgets are an additional, regionally-specific list of costs per acre for various operations that may be difficult for farmers to estimate. Users should present this list to their farmers' as needed for adding costs into the Tool, such as a leaf analysis, bee hive, hull analysis, or NOW Winter Sanitation costs per acre. For pistachio and walnut budgets as well, visit https://coststudies.ucdavis.edu/current/commodities (hyperlinked above).
A7: Source: Duncan, R.A., Gordon, P.E., Holtz, B.A., & Stewart, D. UCCE, UC-AIC, & UCDavis-ARE. (2022). 2019 Sample Costs to Establish an Orchard and Produce Almonds: San Joaquin Valley South (Double-line Drip Irrigation System). Retrieved on May 1, 2022 from https://coststudies.ucdavis.edu/en/current/
A9: Assumptions: The hypothetical farm in southern San Joaquin Valley under double-line drip irrigation consists of 105 contiguous acres farmed by the owner. Smaller non contiguous parcels may have additional costs for travel time and equipment re-calibration. Larger farms will have increased efficiencies and lower per acre costs. Almonds are being established on 100 acres; roads, irrigation systems and farmstead occupy five acres. This orchard would be part of a larger farming operation with other orchards or field crops. No specific almond variety is planted, but cultural practices are based on mid-season maturing varieties. Almond orchards will include at least two or more varieties in which pollen shedding and bloom periods overlap to insure good pollination. 124 trees per acre are planted on a 16’ X 22’ spacing (tree x row). The life of the orchard at the time of planting is estimated to be 23 years. See details on assumptions in the source report linked above on pages 3-12.
... 17 more rows
